{"text_format":"1","workbook":"xlsx","n_sheets":19,"sheets":["Permanto","Hevonen","Renkaat","Hyppy","Nojapuut","Rekki","Tulokset","FinaaliPH","FinaaliRH","FinaaliNR","PermantoT","HevonenT","RenkaatT","HyppyT","NojapuutT","RekkiT","Asetukset","Tulostus","Nimilista"],"not_rendered":{"charts":0,"images":31,"macros":1,"external_links":0,"defined_names":55,"comments":0,"pivot_tables":0},"unopened":[],"bounds":{"document_bytes":16777216,"sheet_cells":100000,"rows_first":2000,"rows_last":500,"rows_between":2000,"halvings":0,"cell_chars":16384,"cell_head_chars":4096},"cells_cut":0,"cells_raw":0,"read":"whole","date_system":"1900"}

{"sheet":"Permanto","index":0,"n_rows":34,"n_cols":13,"rows_kept":34,"cut":false,"hidden":false,"merged":[[0,0,0,2]]}
["Permanto",null,null,null,127,null,null,null,null,null,null,null,""]
[0,"Nr","Nimi","Seura","suor","D","E1","E2","E3","E4","väh","E","Yhteensä"]
[1,102,{"$f":"VLOOKUP($B3,nimilista,2,FALSE)","v":"Heikki Niva"},{"$f":"VLOOKUP($B3,nimilista,5,FALSE)","v":"Espoon Telinetaiturit"},null,null,null,null,null,null,null,{"$f":"IF(ISBLANK(J3),\"\",10-(SUM(G3:J3)-MIN(G3:J3)-MAX(G3:J3))/2)","v":""},{"$f":"IF(ISBLANK(J3),0,F3-K3+L3)","v":0}]
[2,103,"Ilkka Kuusela","Espoon Telinetaiturit",null,null,null,null,null,null,null,{"$f":"IF(ISBLANK(J4),\"\",10-(SUM(G4:J4)-MIN(G4:J4)-MAX(G4:J4))/2)","v":""},{"$f":"IF(ISBLANK(J4),0,F4-K4+L4)","v":0}]
[3,104,"Milo Siivonen","Espoon Telinetaiturit",null,null,null,null,null,null,null,{"$f":"IF(ISBLANK(J5),\"\",10-(SUM(G5:J5)-MIN(G5:J5)-MAX(G5:J5))/2)","v":""},{"$f":"IF(ISBLANK(J5),0,F5-K5+L5)","v":0}]
[4,105,"Oskar Kirmes","Espoon Telinetaiturit",null,null,null,null,null,null,null,"",0]
[5,106,"Henrik Petterson","Helsingfors Gymnastikklubb",null,null,null,null,null,null,null,"",0]
[6,107,"Artturi Lobski","Jyväskylän Voimistelijat",null,null,null,null,null,null,null,"",0]
[7,108,"Heikki Saarenketo","Jyväskylän Voimistelijat",null,null,null,null,null,null,null,"",0]
[8,109,"Janne Haapajoki","Jyväskylän Voimistelijat",null,null,null,null,null,null,null,"",0]
[9,110,"Jarkko Harju","Jyväskylän Voimistelijat",null,null,null,null,null,null,null,"",0]
[10,111,"Leevi Aihos","Jyväskylän Voimistelijat",null,null,null,null,null,null,null,"",0]
[11,112,"Pavel Titov","Jyväskylän Voimistelijat",null,null,null,null,null,null,null,"",0]
[12,113,"Sakari Vekki","Jyväskylän Voimistelijat",null,null,null,null,null,null,null,"",0]
[13,114,"Jimi Päivänen","Kotkan Telinevoimistelijat",null,null,null,null,null,null,null,"",0]
[14,115,"Markku Leinonen","Kotkan Telinevoimistelijat",null,null,null,null,null,null,null,"",0]
[15,116,"Arttu Kesti","Oulun Pyrintö",null,null,null,null,null,null,null,"",0]
[16,117,"Konsta Huuki","Oulun Pyrintö",null,null,null,null,null,null,null,"",0]
[17,118,"Kim Junna","Taipumattomat",null,null,null,null,null,null,null,"",0]
[18,119,"Mikael Miettinen","Tampereen Sisu",null,null,null,null,null,null,null,"",0]
[19,120,"Ville Hynninen","Tampereen Sisu",null,null,null,null,null,null,null,"",0]
[20,121,"Aaron Hotanen","Turun Pyrkivä",null,null,null,null,null,null,null,"",0]
[21,122,"Oz Ekholm","Turun Pyrkivä",null,null,null,null,null,null,null,"",0]
[22,123,"Samuel Oporta","Turun Pyrkivä",null,null,null,null,null,null,null,"",0]
[23,124,"Juho Kanerva","Turun Urheiluliitto",null,null,null,null,null,null,null,"",0]
[24,125,"Olli Kanerva","Turun Urheiluliitto",null,null,null,null,null,null,null,"",0]
[25,126,"Sami Aalto","Turun Urheiluliitto",null,null,null,null,null,null,null,"",0]
[26,127,"Aaro Lamberg","Voimisteluseura Helsinki",null,null,null,null,null,null,null,"",0]
[27,128,"Jouko Koskinen","Voimisteluseura Helsinki",null,null,null,null,null,null,null,"",0]
[28,129,"Kasper Holopainen","Voimisteluseura Helsinki",null,null,null,null,null,null,null,"",0]
[29,130,"Petrus Laulumaa","Voimisteluseura Helsinki",null,null,null,null,null,null,null,"",0]
[30,131,"Timo Niemelä","Voimisteluseura Helsinki",null,null,null,null,null,null,null,"",0]
[31,132,"Tomi Tuuha","Voimisteluseura Helsinki",null,null,null,null,null,null,null,"",0]
[32,133,"Jarkko Pekkanen","Voimisteluseura Keski-Uusimaa",null,null,null,null,null,null,null,"",0]

{"sheet":"Hevonen","index":1,"n_rows":34,"n_cols":13,"rows_kept":34,"cut":false,"hidden":false,"merged":[[0,0,0,2]]}
["Hevonen",null,null,null,105,null,null,null,null,null,null,null,""]
[0,"Nr","Nimi","Seura","suor","D","E1","E2","E3","E4","väh","E","Yhteensä"]
[1,102,{"$f":"VLOOKUP($B3,nimilista,2,FALSE)","v":"Heikki Niva"},{"$f":"VLOOKUP($B3,nimilista,5,FALSE)","v":"Espoon Telinetaiturit"},null,null,null,null,null,null,null,{"$f":"IF(ISBLANK(J3),\"\",10-(SUM(G3:J3)-MIN(G3:J3)-MAX(G3:J3))/2)","v":""},{"$f":"IF(ISBLANK(J3),0,F3-K3+L3)","v":0}]
[2,103,"Ilkka Kuusela","Espoon Telinetaiturit",null,null,null,null,null,null,null,{"$f":"IF(ISBLANK(J4),\"\",10-(SUM(G4:J4)-MIN(G4:J4)-MAX(G4:J4))/2)","v":""},{"$f":"IF(ISBLANK(J4),0,F4-K4+L4)","v":0}]
[3,104,"Milo Siivonen","Espoon Telinetaiturit",null,null,null,null,null,null,null,{"$f":"IF(ISBLANK(J5),\"\",10-(SUM(G5:J5)-MIN(G5:J5)-MAX(G5:J5))/2)","v":""},{"$f":"IF(ISBLANK(J5),0,F5-K5+L5)","v":0}]
[4,105,"Oskar Kirmes","Espoon Telinetaiturit",null,null,null,null,null,null,null,"",0]
[5,106,"Henrik Petterson","Helsingfors Gymnastikklubb",null,null,null,null,null,null,null,"",0]
[6,107,"Artturi Lobski","Jyväskylän Voimistelijat",null,null,null,null,null,null,null,"",0]
[7,108,"Heikki Saarenketo","Jyväskylän Voimistelijat",null,null,null,null,null,null,null,"",0]
[8,109,"Janne Haapajoki","Jyväskylän Voimistelijat",null,null,null,null,null,null,null,"",0]
[9,110,"Jarkko Harju","Jyväskylän Voimistelijat",null,null,null,null,null,null,null,"",0]
[10,111,"Leevi Aihos","Jyväskylän Voimistelijat",null,null,null,null,null,null,null,"",0]
[11,112,"Pavel Titov","Jyväskylän Voimistelijat",null,null,null,null,null,null,null,"",0]
[12,113,"Sakari Vekki","Jyväskylän Voimistelijat",null,null,null,null,null,null,null,"",0]
[13,114,"Jimi Päivänen","Kotkan Telinevoimistelijat",null,null,null,null,null,null,null,"",0]
[14,115,"Markku Leinonen","Kotkan Telinevoimistelijat",null,null,null,null,null,null,null,"",0]
[15,116,"Arttu Kesti","Oulun Pyrintö",null,null,null,null,null,null,null,"",0]
[16,117,"Konsta Huuki","Oulun Pyrintö",null,null,null,null,null,null,null,"",0]
[17,118,"Kim Junna","Taipumattomat",null,null,null,null,null,null,null,"",0]
[18,119,"Mikael Miettinen","Tampereen Sisu",null,null,null,null,null,null,null,"",0]
[19,120,"Ville Hynninen","Tampereen Sisu",null,null,null,null,null,null,null,"",0]
[20,121,"Aaron Hotanen","Turun Pyrkivä",null,null,null,null,null,null,null,"",0]
[21,122,"Oz Ekholm","Turun Pyrkivä",null,null,null,null,null,null,null,"",0]
[22,123,"Samuel Oporta","Turun Pyrkivä",null,null,null,null,null,null,null,"",0]
[23,124,"Juho Kanerva","Turun Urheiluliitto",null,null,null,null,null,null,null,"",0]
[24,125,"Olli Kanerva","Turun Urheiluliitto",null,null,null,null,null,null,null,"",0]
[25,126,"Sami Aalto","Turun Urheiluliitto",null,null,null,null,null,null,null,"",0]
[26,127,"Aaro Lamberg","Voimisteluseura Helsinki",null,null,null,null,null,null,null,"",0]
[27,128,"Jouko Koskinen","Voimisteluseura Helsinki",null,null,null,null,null,null,null,"",0]
[28,129,"Kasper Holopainen","Voimisteluseura Helsinki",null,null,null,null,null,null,null,"",0]
[29,130,"Petrus Laulumaa","Voimisteluseura Helsinki",null,null,null,null,null,null,null,"",0]
[30,131,"Timo Niemelä","Voimisteluseura Helsinki",null,null,null,null,null,null,null,"",0]
[31,132,"Tomi Tuuha","Voimisteluseura Helsinki",null,null,null,null,null,null,null,"",0]
[32,133,"Jarkko Pekkanen","Voimisteluseura Keski-Uusimaa",null,null,null,null,null,null,null,"",0]

{"sheet":"Renkaat","index":2,"n_rows":34,"n_cols":13,"rows_kept":34,"cut":false,"hidden":false,"merged":[[0,0,0,2]]}
["Renkaat",null,null,null,105,null,null,null,null,null,null,null,""]
[0,"Nr","Nimi","Seura","suor","D","E1","E2","E3","E4","väh","E","Yhteensä"]
[1,102,{"$f":"VLOOKUP($B3,nimilista,2,FALSE)","v":"Heikki Niva"},{"$f":"VLOOKUP($B3,nimilista,5,FALSE)","v":"Espoon Telinetaiturit"},null,null,null,null,null,null,null,{"$f":"IF(ISBLANK(J3),\"\",10-(SUM(G3:J3)-MIN(G3:J3)-MAX(G3:J3))/2)","v":""},{"$f":"IF(ISBLANK(J3),0,F3-K3+L3)","v":0}]
[2,103,"Ilkka Kuusela","Espoon Telinetaiturit",null,null,null,null,null,null,null,{"$f":"IF(ISBLANK(J4),\"\",10-(SUM(G4:J4)-MIN(G4:J4)-MAX(G4:J4))/2)","v":""},{"$f":"IF(ISBLANK(J4),0,F4-K4+L4)","v":0}]
[3,104,"Milo Siivonen","Espoon Telinetaiturit",null,null,null,null,null,null,null,{"$f":"IF(ISBLANK(J5),\"\",10-(SUM(G5:J5)-MIN(G5:J5)-MAX(G5:J5))/2)","v":""},{"$f":"IF(ISBLANK(J5),0,F5-K5+L5)","v":0}]
[4,105,"Oskar Kirmes","Espoon Telinetaiturit",null,null,null,null,null,null,null,"",0]
[5,106,"Henrik Petterson","Helsingfors Gymnastikklubb",null,null,null,null,null,null,null,"",0]
[6,107,"Artturi Lobski","Jyväskylän Voimistelijat",null,null,null,null,null,null,null,"",0]
[7,108,"Heikki Saarenketo","Jyväskylän Voimistelijat",null,null,null,null,null,null,null,"",0]
[8,109,"Janne Haapajoki","Jyväskylän Voimistelijat",null,null,null,null,null,null,null,"",0]
[9,110,"Jarkko Harju","Jyväskylän Voimistelijat",null,null,null,null,null,null,null,"",0]
[10,111,"Leevi Aihos","Jyväskylän Voimistelijat",null,null,null,null,null,null,null,"",0]
[11,112,"Pavel Titov","Jyväskylän Voimistelijat",null,null,null,null,null,null,null,"",0]
[12,113,"Sakari Vekki","Jyväskylän Voimistelijat",null,null,null,null,null,null,null,"",0]
[13,114,"Jimi Päivänen","Kotkan Telinevoimistelijat",null,null,null,null,null,null,null,"",0]
[14,115,"Markku Leinonen","Kotkan Telinevoimistelijat",null,null,null,null,null,null,null,"",0]
[15,116,"Arttu Kesti","Oulun Pyrintö",null,null,null,null,null,null,null,"",0]
[16,117,"Konsta Huuki","Oulun Pyrintö",null,null,null,null,null,null,null,"",0]
[17,118,"Kim Junna","Taipumattomat",null,null,null,null,null,null,null,"",0]
[18,119,"Mikael Miettinen","Tampereen Sisu",null,null,null,null,null,null,null,"",0]
[19,120,"Ville Hynninen","Tampereen Sisu",null,null,null,null,null,null,null,"",0]
[20,121,"Aaron Hotanen","Turun Pyrkivä",null,null,null,null,null,null,null,"",0]
[21,122,"Oz Ekholm","Turun Pyrkivä",null,null,null,null,null,null,null,"",0]
[22,123,"Samuel Oporta","Turun Pyrkivä",null,null,null,null,null,null,null,"",0]
[23,124,"Juho Kanerva","Turun Urheiluliitto",null,null,null,null,null,null,null,"",0]
[24,125,"Olli Kanerva","Turun Urheiluliitto",null,null,null,null,null,null,null,"",0]
[25,126,"Sami Aalto","Turun Urheiluliitto",null,null,null,null,null,null,null,"",0]
[26,127,"Aaro Lamberg","Voimisteluseura Helsinki",null,null,null,null,null,null,null,"",0]
[27,128,"Jouko Koskinen","Voimisteluseura Helsinki",null,null,null,null,null,null,null,"",0]
[28,129,"Kasper Holopainen","Voimisteluseura Helsinki",null,null,null,null,null,null,null,"",0]
[29,130,"Petrus Laulumaa","Voimisteluseura Helsinki",null,null,null,null,null,null,null,"",0]
[30,131,"Timo Niemelä","Voimisteluseura Helsinki",null,null,null,null,null,null,null,"",0]
[31,132,"Tomi Tuuha","Voimisteluseura Helsinki",null,null,null,null,null,null,null,"",0]
[32,133,"Jarkko Pekkanen","Voimisteluseura Keski-Uusimaa",null,null,null,null,null,null,null,"",0]

{"sheet":"Hyppy","index":3,"n_rows":34,"n_cols":23,"rows_kept":34,"cut":false,"hidden":false,"merged":[[0,0,0,2]]}
["Hyppy",null,null,null,106,"1",null,null,null,null,null,null,"",null,"2",null,null,null,null,null,null,""]
[0,"Nr","Nimi","Seura","suor","D","E1","E2","E3","E4","väh","E","Yhteensä",null,"D","E1","E2","E3","E4","väh","E","Yhteensä","Tulos"]
[1,102,{"$f":"VLOOKUP($B3,nimilista,2,FALSE)","v":"Heikki Niva"},{"$f":"VLOOKUP($B3,nimilista,5,FALSE)","v":"Espoon Telinetaiturit"},null,null,null,null,null,null,null,{"$f":"IF(ISBLANK(J3),\"\",10-(SUM(G3:J3)-MIN(G3:J3)-MAX(G3:J3))/2)","v":""},{"$f":"IF(ISBLANK(J3),0,F3-K3+L3)","v":0},null,null,null,null,null,null,null,{"$f":"IF(ISBLANK(S3),\"\",10-(SUM(P3:S3)-MIN(P3:S3)-MAX(P3:S3))/2)","v":""},{"$f":"IF(ISBLANK(S3),0,O3-T3+U3)","v":0},{"$f":"IF(ISBLANK(S3),\"\",(M3+V3)/2)","v":""}]
[2,103,"Ilkka Kuusela","Espoon Telinetaiturit",null,null,null,null,null,null,null,{"$f":"IF(ISBLANK(J4),\"\",10-(SUM(G4:J4)-MIN(G4:J4)-MAX(G4:J4))/2)","v":""},{"$f":"IF(ISBLANK(J4),0,F4-K4+L4)","v":0},null,null,null,null,null,null,null,{"$f":"IF(ISBLANK(S4),\"\",10-(SUM(P4:S4)-MIN(P4:S4)-MAX(P4:S4))/2)","v":""},{"$f":"IF(ISBLANK(S4),0,O4-T4+U4)","v":0},{"$f":"IF(ISBLANK(S4),\"\",(M4+V4)/2)","v":""}]
[3,104,"Milo Siivonen","Espoon Telinetaiturit",null,null,null,null,null,null,null,{"$f":"IF(ISBLANK(J5),\"\",10-(SUM(G5:J5)-MIN(G5:J5)-MAX(G5:J5))/2)","v":""},{"$f":"IF(ISBLANK(J5),0,F5-K5+L5)","v":0},null,null,null,null,null,null,null,{"$f":"IF(ISBLANK(S5),\"\",10-(SUM(P5:S5)-MIN(P5:S5)-MAX(P5:S5))/2)","v":""},{"$f":"IF(ISBLANK(S5),0,O5-T5+U5)","v":0},""]
[4,105,"Oskar Kirmes","Espoon Telinetaiturit",null,null,null,null,null,null,null,"",0,null,null,null,null,null,null,null,"",0,""]
[5,106,"Henrik Petterson","Helsingfors Gymnastikklubb",null,null,null,null,null,null,null,"",0,null,null,null,null,null,null,null,"",0,""]
[6,107,"Artturi Lobski","Jyväskylän Voimistelijat",null,null,null,null,null,null,null,"",0,null,null,null,null,null,null,null,"",0,""]
[7,108,"Heikki Saarenketo","Jyväskylän Voimistelijat",null,null,null,null,null,null,null,"",0,null,null,null,null,null,null,null,"",0,""]
[8,109,"Janne Haapajoki","Jyväskylän Voimistelijat",null,null,null,null,null,null,null,"",0,null,null,null,null,null,null,null,"",0,""]
[9,110,"Jarkko Harju","Jyväskylän Voimistelijat",null,null,null,null,null,null,null,"",0,null,null,null,null,null,null,null,"",0,""]
[10,111,"Leevi Aihos","Jyväskylän Voimistelijat",null,null,null,null,null,null,null,"",0,null,null,null,null,null,null,null,"",0,""]
[11,112,"Pavel Titov","Jyväskylän Voimistelijat",null,null,null,null,null,null,null,"",0,null,null,null,null,null,null,null,"",0,""]
[12,113,"Sakari Vekki","Jyväskylän Voimistelijat",null,null,null,null,null,null,null,"",0,null,null,null,null,null,null,null,"",0,""]
[13,114,"Jimi Päivänen","Kotkan Telinevoimistelijat",null,null,null,null,null,null,null,"",0,null,null,null,null,null,null,null,"",0,""]
[14,115,"Markku Leinonen","Kotkan Telinevoimistelijat",null,null,null,null,null,null,null,"",0,null,null,null,null,null,null,null,"",0,""]
[15,116,"Arttu Kesti","Oulun Pyrintö",null,null,null,null,null,null,null,"",0,null,null,null,null,null,null,null,"",0,""]
[16,117,"Konsta Huuki","Oulun Pyrintö",null,null,null,null,null,null,null,"",0,null,null,null,null,null,null,null,"",0,""]
[17,118,"Kim Junna","Taipumattomat",null,null,null,null,null,null,null,"",0,null,null,null,null,null,null,null,"",0,""]
[18,119,"Mikael Miettinen","Tampereen Sisu",null,null,null,null,null,null,null,"",0,null,null,null,null,null,null,null,"",0,""]
[19,120,"Ville Hynninen","Tampereen Sisu",null,null,null,null,null,null,null,"",0,null,null,null,null,null,null,null,"",0,""]
[20,121,"Aaron Hotanen","Turun Pyrkivä",null,null,null,null,null,null,null,"",0,null,null,null,null,null,null,null,"",0,""]
[21,122,"Oz Ekholm","Turun Pyrkivä",null,null,null,null,null,null,null,"",0,null,null,null,null,null,null,null,"",0,""]
[22,123,"Samuel Oporta","Turun Pyrkivä",null,null,null,null,null,null,null,"",0,null,null,null,null,null,null,null,"",0,""]
[23,124,"Juho Kanerva","Turun Urheiluliitto",null,null,null,null,null,null,null,"",0,null,null,null,null,null,null,null,"",0,""]
[24,125,"Olli Kanerva","Turun Urheiluliitto",null,null,null,null,null,null,null,"",0,null,null,null,null,null,null,null,"",0,""]
[25,126,"Sami Aalto","Turun Urheiluliitto",null,null,null,null,null,null,null,"",0,null,null,null,null,null,null,null,"",0,""]
[26,127,"Aaro Lamberg","Voimisteluseura Helsinki",null,null,null,null,null,null,null,"",0,null,null,null,null,null,null,null,"",0,""]
[27,128,"Jouko Koskinen","Voimisteluseura Helsinki",null,null,null,null,null,null,null,"",0,null,null,null,null,null,null,null,"",0,""]
[28,129,"Kasper Holopainen","Voimisteluseura Helsinki",null,null,null,null,null,null,null,"",0,null,null,null,null,null,null,null,"",0,""]
[29,130,"Petrus Laulumaa","Voimisteluseura Helsinki",null,null,null,null,null,null,null,"",0,null,null,null,null,null,null,null,"",0,""]
[30,131,"Timo Niemelä","Voimisteluseura Helsinki",null,null,null,null,null,null,null,"",0,null,null,null,null,null,null,null,"",0,""]
[31,132,"Tomi Tuuha","Voimisteluseura Helsinki",null,null,null,null,null,null,null,"",0,null,null,null,null,null,null,null,"",0,""]
[32,133,"Jarkko Pekkanen","Voimisteluseura Keski-Uusimaa",null,null,null,null,null,null,null,"",0,null,null,null,null,null,null,null,"",0,""]

{"sheet":"Nojapuut","index":4,"n_rows":34,"n_cols":13,"rows_kept":34,"cut":false,"hidden":false,"merged":[[0,0,0,2]]}
["Nojapuut",null,null,null,105,null,null,null,null,null,null,null,""]
[0,"Nr","Nimi","Seura","suor","D","E1","E2","E3","E4","väh","E","Yhteensä"]
[1,102,{"$f":"VLOOKUP($B3,nimilista,2,FALSE)","v":"Heikki Niva"},{"$f":"VLOOKUP($B3,nimilista,5,FALSE)","v":"Espoon Telinetaiturit"},null,null,null,null,null,null,null,{"$f":"IF(ISBLANK(J3),\"\",10-(SUM(G3:J3)-MIN(G3:J3)-MAX(G3:J3))/2)","v":""},{"$f":"IF(ISBLANK(J3),0,F3-K3+L3)","v":0}]
[2,103,"Ilkka Kuusela","Espoon Telinetaiturit",null,null,null,null,null,null,null,{"$f":"IF(ISBLANK(J4),\"\",10-(SUM(G4:J4)-MIN(G4:J4)-MAX(G4:J4))/2)","v":""},{"$f":"IF(ISBLANK(J4),0,F4-K4+L4)","v":0}]
[3,104,"Milo Siivonen","Espoon Telinetaiturit",null,null,null,null,null,null,null,{"$f":"IF(ISBLANK(J5),\"\",10-(SUM(G5:J5)-MIN(G5:J5)-MAX(G5:J5))/2)","v":""},{"$f":"IF(ISBLANK(J5),0,F5-K5+L5)","v":0}]
[4,105,"Oskar Kirmes","Espoon Telinetaiturit",null,null,null,null,null,null,null,"",0]
[5,106,"Henrik Petterson","Helsingfors Gymnastikklubb",null,null,null,null,null,null,null,"",0]
[6,107,"Artturi Lobski","Jyväskylän Voimistelijat",null,null,null,null,null,null,null,"",0]
[7,108,"Heikki Saarenketo","Jyväskylän Voimistelijat",null,null,null,null,null,null,null,"",0]
[8,109,"Janne Haapajoki","Jyväskylän Voimistelijat",null,null,null,null,null,null,null,"",0]
[9,110,"Jarkko Harju","Jyväskylän Voimistelijat",null,null,null,null,null,null,null,"",0]
[10,111,"Leevi Aihos","Jyväskylän Voimistelijat",null,null,null,null,null,null,null,"",0]
[11,112,"Pavel Titov","Jyväskylän Voimistelijat",null,null,null,null,null,null,null,"",0]
[12,113,"Sakari Vekki","Jyväskylän Voimistelijat",null,null,null,null,null,null,null,"",0]
[13,114,"Jimi Päivänen","Kotkan Telinevoimistelijat",null,null,null,null,null,null,null,"",0]
[14,115,"Markku Leinonen","Kotkan Telinevoimistelijat",null,null,null,null,null,null,null,"",0]
[15,116,"Arttu Kesti","Oulun Pyrintö",null,null,null,null,null,null,null,"",0]
[16,117,"Konsta Huuki","Oulun Pyrintö",null,null,null,null,null,null,null,"",0]
[17,118,"Kim Junna","Taipumattomat",null,null,null,null,null,null,null,"",0]
[18,119,"Mikael Miettinen","Tampereen Sisu",null,null,null,null,null,null,null,"",0]
[19,120,"Ville Hynninen","Tampereen Sisu",null,null,null,null,null,null,null,"",0]
[20,121,"Aaron Hotanen","Turun Pyrkivä",null,null,null,null,null,null,null,"",0]
[21,122,"Oz Ekholm","Turun Pyrkivä",null,null,null,null,null,null,null,"",0]
[22,123,"Samuel Oporta","Turun Pyrkivä",null,null,null,null,null,null,null,"",0]
[23,124,"Juho Kanerva","Turun Urheiluliitto",null,null,null,null,null,null,null,"",0]
[24,125,"Olli Kanerva","Turun Urheiluliitto",null,null,null,null,null,null,null,"",0]
[25,126,"Sami Aalto","Turun Urheiluliitto",null,null,null,null,null,null,null,"",0]
[26,127,"Aaro Lamberg","Voimisteluseura Helsinki",null,null,null,null,null,null,null,"",0]
[27,128,"Jouko Koskinen","Voimisteluseura Helsinki",null,null,null,null,null,null,null,"",0]
[28,129,"Kasper Holopainen","Voimisteluseura Helsinki",null,null,null,null,null,null,null,"",0]
[29,130,"Petrus Laulumaa","Voimisteluseura Helsinki",null,null,null,null,null,null,null,"",0]
[30,131,"Timo Niemelä","Voimisteluseura Helsinki",null,null,null,null,null,null,null,"",0]
[31,132,"Tomi Tuuha","Voimisteluseura Helsinki",null,null,null,null,null,null,null,"",0]
[32,133,"Jarkko Pekkanen","Voimisteluseura Keski-Uusimaa",null,null,null,null,null,null,null,"",0]

{"sheet":"Rekki","index":5,"n_rows":34,"n_cols":13,"rows_kept":34,"cut":false,"hidden":false,"merged":[[0,0,0,2]]}
["Rekki",null,null,null,105,null,null,null,null,null,null,null,""]
[0,"Nr","Nimi","Seura","suor","D","E1","E2","E3","E4","väh","E","Yhteensä"]
[1,102,{"$f":"VLOOKUP($B3,nimilista,2,FALSE)","v":"Heikki Niva"},{"$f":"VLOOKUP($B3,nimilista,5,FALSE)","v":"Espoon Telinetaiturit"},null,null,null,null,null,null,null,{"$f":"IF(ISBLANK(J3),\"\",10-(SUM(G3:J3)-MIN(G3:J3)-MAX(G3:J3))/2)","v":""},{"$f":"IF(ISBLANK(J3),0,F3-K3+L3)","v":0}]
[2,103,"Ilkka Kuusela","Espoon Telinetaiturit",null,null,null,null,null,null,null,{"$f":"IF(ISBLANK(J4),\"\",10-(SUM(G4:J4)-MIN(G4:J4)-MAX(G4:J4))/2)","v":""},{"$f":"IF(ISBLANK(J4),0,F4-K4+L4)","v":0}]
[3,104,"Milo Siivonen","Espoon Telinetaiturit",null,null,null,null,null,null,null,{"$f":"IF(ISBLANK(J5),\"\",10-(SUM(G5:J5)-MIN(G5:J5)-MAX(G5:J5))/2)","v":""},{"$f":"IF(ISBLANK(J5),0,F5-K5+L5)","v":0}]
[4,105,"Oskar Kirmes","Espoon Telinetaiturit",null,null,null,null,null,null,null,"",0]
[5,106,"Henrik Petterson","Helsingfors Gymnastikklubb",null,null,null,null,null,null,null,"",0]
[6,107,"Artturi Lobski","Jyväskylän Voimistelijat",null,null,null,null,null,null,null,"",0]
[7,108,"Heikki Saarenketo","Jyväskylän Voimistelijat",null,null,null,null,null,null,null,"",0]
[8,109,"Janne Haapajoki","Jyväskylän Voimistelijat",null,null,null,null,null,null,null,"",0]
[9,110,"Jarkko Harju","Jyväskylän Voimistelijat",null,null,null,null,null,null,null,"",0]
[10,111,"Leevi Aihos","Jyväskylän Voimistelijat",null,null,null,null,null,null,null,"",0]
[11,112,"Pavel Titov","Jyväskylän Voimistelijat",null,null,null,null,null,null,null,"",0]
[12,113,"Sakari Vekki","Jyväskylän Voimistelijat",null,null,null,null,null,null,null,"",0]
[13,114,"Jimi Päivänen","Kotkan Telinevoimistelijat",null,null,null,null,null,null,null,"",0]
[14,115,"Markku Leinonen","Kotkan Telinevoimistelijat",null,null,null,null,null,null,null,"",0]
[15,116,"Arttu Kesti","Oulun Pyrintö",null,null,null,null,null,null,null,"",0]
[16,117,"Konsta Huuki","Oulun Pyrintö",null,null,null,null,null,null,null,"",0]
[17,118,"Kim Junna","Taipumattomat",null,null,null,null,null,null,null,"",0]
[18,119,"Mikael Miettinen","Tampereen Sisu",null,null,null,null,null,null,null,"",0]
[19,120,"Ville Hynninen","Tampereen Sisu",null,null,null,null,null,null,null,"",0]
[20,121,"Aaron Hotanen","Turun Pyrkivä",null,null,null,null,null,null,null,"",0]
[21,122,"Oz Ekholm","Turun Pyrkivä",null,null,null,null,null,null,null,"",0]
[22,123,"Samuel Oporta","Turun Pyrkivä",null,null,null,null,null,null,null,"",0]
[23,124,"Juho Kanerva","Turun Urheiluliitto",null,null,null,null,null,null,null,"",0]
[24,125,"Olli Kanerva","Turun Urheiluliitto",null,null,null,null,null,null,null,"",0]
[25,126,"Sami Aalto","Turun Urheiluliitto",null,null,null,null,null,null,null,"",0]
[26,127,"Aaro Lamberg","Voimisteluseura Helsinki",null,null,null,null,null,null,null,"",0]
[27,128,"Jouko Koskinen","Voimisteluseura Helsinki",null,null,null,null,null,null,null,"",0]
[28,129,"Kasper Holopainen","Voimisteluseura Helsinki",null,null,null,null,null,null,null,"",0]
[29,130,"Petrus Laulumaa","Voimisteluseura Helsinki",null,null,null,null,null,null,null,"",0]
[30,131,"Timo Niemelä","Voimisteluseura Helsinki",null,null,null,null,null,null,null,"",0]
[31,132,"Tomi Tuuha","Voimisteluseura Helsinki",null,null,null,null,null,null,null,"",0]
[32,133,"Jarkko Pekkanen","Voimisteluseura Keski-Uusimaa",null,null,null,null,null,null,null,"",0]

{"sheet":"Tulokset","index":6,"n_rows":36,"n_cols":19,"rows_kept":36,"cut":false,"hidden":false,"merged":[[2,0,2,2],[1,4,1,5],[0,4,0,5],[1,6,1,8],[1,15,1,16],[0,6,0,8],[0,15,0,16]]}
[{"$f":"teline1","v":1},{"$f":"kuka1","v":127},{"$f":"IF($B1<=0,\"\",VLOOKUP(B1,B4:Q35,2,FALSE))","v":"Aaro Lamberg"},null,{"$f":"IF($B1<=0,\"\",VLOOKUP($B1,$B$5:$Q$36,($A1-1)*2+4,FALSE))","v":0},null,{"$f":"IF($B1<=0,\"\",VLOOKUP($B1,$B$5:$Q$36,($A1-1)*2+5,FALSE))","v":0},null,null,null,null,null,null,null,null,{"$f":"IF($B1<=0,\"\",VLOOKUP($B1,$B$5:$Q$36,16,FALSE))","v":0}]
[{"$f":"teline2","v":6},{"$f":"kuka2","v":105},{"$f":"IF($B2<=0,\"\",VLOOKUP(B2,B5:Q36,2,FALSE))","v":"Oskar Kirmes"},null,{"$f":"IF($B2<=0,\"\",VLOOKUP($B2,$B$5:$Q$36,($A2-1)*2+4,FALSE))","v":0},null,{"$f":"IF($B2<=0,\"\",VLOOKUP($B2,$B$5:$Q$36,($A2-1)*2+5,FALSE))","v":0},null,null,null,null,null,null,null,null,{"$f":"IF($B2<=0,\"\",VLOOKUP($B2,$B$5:$Q$36,16,FALSE))","v":0}]
["Miesten 6-ottelu",null,null,null,"Permanto",{"$f":"Permanto!$M$1","v":""},"Hevonen",{"$f":"Hevonen!$M$1","v":""},"Renkaat",{"$f":"Renkaat!$M$1","v":""},"Hyppy",{"$f":"Hyppy!$M$1","v":""},"Nojapuut",{"$f":"Nojapuut!$M$1","v":""},"Rekki",{"$f":"Rekki!$M$1","v":""},null,"ero"]
[0,"Nr","Nimi","Seura","D","yht","D","yht","D","yht","D","yht","D","yht","D","yht","Yhteensä","kärkeen"]
[{"$f":"A4+1","v":1},{"$f":"Tulostus!B5","v":102},{"$f":"Tulostus!C5","v":"Heikki Niva"},{"$f":"VLOOKUP(B5,nimilista,6,FALSE)","v":"EsTT"},{"$f":"Tulostus!E5","v":0},{"$f":"Tulostus!F5","v":0},{"$f":"Tulostus!G5","v":0},{"$f":"Tulostus!H5","v":0},{"$f":"Tulostus!I5","v":0},{"$f":"Tulostus!J5","v":0},{"$f":"Tulostus!K5","v":0},{"$f":"Tulostus!L5","v":0},{"$f":"Tulostus!M5","v":0},{"$f":"Tulostus!N5","v":0},{"$f":"Tulostus!O5","v":0},{"$f":"Tulostus!P5","v":0},{"$f":"Tulostus!Q5","v":0},{"$f":"Q5-$Q$5","v":0}]
[2,{"$f":"Tulostus!B6","v":103},{"$f":"Tulostus!C6","v":"Ilkka Kuusela"},"EsTT",{"$f":"Tulostus!E6","v":0},{"$f":"Tulostus!F6","v":0},{"$f":"Tulostus!G6","v":0},{"$f":"Tulostus!H6","v":0},{"$f":"Tulostus!I6","v":0},{"$f":"Tulostus!J6","v":0},{"$f":"Tulostus!K6","v":0},{"$f":"Tulostus!L6","v":0},{"$f":"Tulostus!M6","v":0},{"$f":"Tulostus!N6","v":0},{"$f":"Tulostus!O6","v":0},{"$f":"Tulostus!P6","v":0},{"$f":"Tulostus!Q6","v":0},0,{"$f":"IF((Q6=Q5),IF((Q6=0),\"\",\"tie\"),\"\")","v":""}]
[3,{"$f":"Tulostus!B7","v":104},{"$f":"Tulostus!C7","v":"Milo Siivonen"},"EsTT",{"$f":"Tulostus!E7","v":0},{"$f":"Tulostus!F7","v":0},{"$f":"Tulostus!G7","v":0},{"$f":"Tulostus!H7","v":0},{"$f":"Tulostus!I7","v":0},{"$f":"Tulostus!J7","v":0},{"$f":"Tulostus!K7","v":0},{"$f":"Tulostus!L7","v":0},{"$f":"Tulostus!M7","v":0},{"$f":"Tulostus!N7","v":0},{"$f":"Tulostus!O7","v":0},{"$f":"Tulostus!P7","v":0},{"$f":"Tulostus!Q7","v":0},0,""]
[4,{"$f":"Tulostus!B8","v":105},{"$f":"Tulostus!C8","v":"Oskar Kirmes"},"EsTT",{"$f":"Tulostus!E8","v":0},{"$f":"Tulostus!F8","v":0},{"$f":"Tulostus!G8","v":0},{"$f":"Tulostus!H8","v":0},{"$f":"Tulostus!I8","v":0},{"$f":"Tulostus!J8","v":0},{"$f":"Tulostus!K8","v":0},{"$f":"Tulostus!L8","v":0},{"$f":"Tulostus!M8","v":0},{"$f":"Tulostus!N8","v":0},{"$f":"Tulostus!O8","v":0},{"$f":"Tulostus!P8","v":0},{"$f":"Tulostus!Q8","v":0},0,""]
[5,{"$f":"Tulostus!B9","v":106},{"$f":"Tulostus!C9","v":"Henrik Petterson"},"HGK",{"$f":"Tulostus!E9","v":0},{"$f":"Tulostus!F9","v":0},{"$f":"Tulostus!G9","v":0},{"$f":"Tulostus!H9","v":0},{"$f":"Tulostus!I9","v":0},{"$f":"Tulostus!J9","v":0},{"$f":"Tulostus!K9","v":0},{"$f":"Tulostus!L9","v":0},{"$f":"Tulostus!M9","v":0},{"$f":"Tulostus!N9","v":0},{"$f":"Tulostus!O9","v":0},{"$f":"Tulostus!P9","v":0},{"$f":"Tulostus!Q9","v":0},0,""]
[6,{"$f":"Tulostus!B10","v":107},{"$f":"Tulostus!C10","v":"Artturi Lobski"},"JyVo",{"$f":"Tulostus!E10","v":0},{"$f":"Tulostus!F10","v":0},{"$f":"Tulostus!G10","v":0},{"$f":"Tulostus!H10","v":0},{"$f":"Tulostus!I10","v":0},{"$f":"Tulostus!J10","v":0},{"$f":"Tulostus!K10","v":0},{"$f":"Tulostus!L10","v":0},{"$f":"Tulostus!M10","v":0},{"$f":"Tulostus!N10","v":0},{"$f":"Tulostus!O10","v":0},{"$f":"Tulostus!P10","v":0},{"$f":"Tulostus!Q10","v":0},0,""]
[7,{"$f":"Tulostus!B11","v":108},{"$f":"Tulostus!C11","v":"Heikki Saarenketo"},"JyVo",{"$f":"Tulostus!E11","v":0},{"$f":"Tulostus!F11","v":0},{"$f":"Tulostus!G11","v":0},{"$f":"Tulostus!H11","v":0},{"$f":"Tulostus!I11","v":0},{"$f":"Tulostus!J11","v":0},{"$f":"Tulostus!K11","v":0},{"$f":"Tulostus!L11","v":0},{"$f":"Tulostus!M11","v":0},{"$f":"Tulostus!N11","v":0},{"$f":"Tulostus!O11","v":0},{"$f":"Tulostus!P11","v":0},{"$f":"Tulostus!Q11","v":0},0,""]
[8,{"$f":"Tulostus!B12","v":109},{"$f":"Tulostus!C12","v":"Janne Haapajoki"},"JyVo",{"$f":"Tulostus!E12","v":0},{"$f":"Tulostus!F12","v":0},{"$f":"Tulostus!G12","v":0},{"$f":"Tulostus!H12","v":0},{"$f":"Tulostus!I12","v":0},{"$f":"Tulostus!J12","v":0},{"$f":"Tulostus!K12","v":0},{"$f":"Tulostus!L12","v":0},{"$f":"Tulostus!M12","v":0},{"$f":"Tulostus!N12","v":0},{"$f":"Tulostus!O12","v":0},{"$f":"Tulostus!P12","v":0},{"$f":"Tulostus!Q12","v":0},0,""]
[9,{"$f":"Tulostus!B13","v":110},{"$f":"Tulostus!C13","v":"Jarkko Harju"},"JyVo",{"$f":"Tulostus!E13","v":0},{"$f":"Tulostus!F13","v":0},{"$f":"Tulostus!G13","v":0},{"$f":"Tulostus!H13","v":0},{"$f":"Tulostus!I13","v":0},{"$f":"Tulostus!J13","v":0},{"$f":"Tulostus!K13","v":0},{"$f":"Tulostus!L13","v":0},{"$f":"Tulostus!M13","v":0},{"$f":"Tulostus!N13","v":0},{"$f":"Tulostus!O13","v":0},{"$f":"Tulostus!P13","v":0},{"$f":"Tulostus!Q13","v":0},0,""]
[10,{"$f":"Tulostus!B14","v":111},{"$f":"Tulostus!C14","v":"Leevi Aihos"},"JyVo",{"$f":"Tulostus!E14","v":0},{"$f":"Tulostus!F14","v":0},{"$f":"Tulostus!G14","v":0},{"$f":"Tulostus!H14","v":0},{"$f":"Tulostus!I14","v":0},{"$f":"Tulostus!J14","v":0},{"$f":"Tulostus!K14","v":0},{"$f":"Tulostus!L14","v":0},{"$f":"Tulostus!M14","v":0},{"$f":"Tulostus!N14","v":0},{"$f":"Tulostus!O14","v":0},{"$f":"Tulostus!P14","v":0},{"$f":"Tulostus!Q14","v":0},0,""]
[11,{"$f":"Tulostus!B15","v":112},{"$f":"Tulostus!C15","v":"Pavel Titov"},"JyVo",{"$f":"Tulostus!E15","v":0},{"$f":"Tulostus!F15","v":0},{"$f":"Tulostus!G15","v":0},{"$f":"Tulostus!H15","v":0},{"$f":"Tulostus!I15","v":0},{"$f":"Tulostus!J15","v":0},{"$f":"Tulostus!K15","v":0},{"$f":"Tulostus!L15","v":0},{"$f":"Tulostus!M15","v":0},{"$f":"Tulostus!N15","v":0},{"$f":"Tulostus!O15","v":0},{"$f":"Tulostus!P15","v":0},{"$f":"Tulostus!Q15","v":0},0,""]
[12,{"$f":"Tulostus!B16","v":113},{"$f":"Tulostus!C16","v":"Sakari Vekki"},"JyVo",{"$f":"Tulostus!E16","v":0},{"$f":"Tulostus!F16","v":0},{"$f":"Tulostus!G16","v":0},{"$f":"Tulostus!H16","v":0},{"$f":"Tulostus!I16","v":0},{"$f":"Tulostus!J16","v":0},{"$f":"Tulostus!K16","v":0},{"$f":"Tulostus!L16","v":0},{"$f":"Tulostus!M16","v":0},{"$f":"Tulostus!N16","v":0},{"$f":"Tulostus!O16","v":0},{"$f":"Tulostus!P16","v":0},{"$f":"Tulostus!Q16","v":0},0,""]
[13,{"$f":"Tulostus!B17","v":114},{"$f":"Tulostus!C17","v":"Jimi Päivänen"},"KOTEVO",{"$f":"Tulostus!E17","v":0},{"$f":"Tulostus!F17","v":0},{"$f":"Tulostus!G17","v":0},{"$f":"Tulostus!H17","v":0},{"$f":"Tulostus!I17","v":0},{"$f":"Tulostus!J17","v":0},{"$f":"Tulostus!K17","v":0},{"$f":"Tulostus!L17","v":0},{"$f":"Tulostus!M17","v":0},{"$f":"Tulostus!N17","v":0},{"$f":"Tulostus!O17","v":0},{"$f":"Tulostus!P17","v":0},{"$f":"Tulostus!Q17","v":0},0,""]
[14,{"$f":"Tulostus!B18","v":115},{"$f":"Tulostus!C18","v":"Markku Leinonen"},"KOTEVO",{"$f":"Tulostus!E18","v":0},{"$f":"Tulostus!F18","v":0},{"$f":"Tulostus!G18","v":0},{"$f":"Tulostus!H18","v":0},{"$f":"Tulostus!I18","v":0},{"$f":"Tulostus!J18","v":0},{"$f":"Tulostus!K18","v":0},{"$f":"Tulostus!L18","v":0},{"$f":"Tulostus!M18","v":0},{"$f":"Tulostus!N18","v":0},{"$f":"Tulostus!O18","v":0},{"$f":"Tulostus!P18","v":0},{"$f":"Tulostus!Q18","v":0},0,""]
[15,{"$f":"Tulostus!B19","v":116},{"$f":"Tulostus!C19","v":"Arttu Kesti"},"OP",{"$f":"Tulostus!E19","v":0},{"$f":"Tulostus!F19","v":0},{"$f":"Tulostus!G19","v":0},{"$f":"Tulostus!H19","v":0},{"$f":"Tulostus!I19","v":0},{"$f":"Tulostus!J19","v":0},{"$f":"Tulostus!K19","v":0},{"$f":"Tulostus!L19","v":0},{"$f":"Tulostus!M19","v":0},{"$f":"Tulostus!N19","v":0},{"$f":"Tulostus!O19","v":0},{"$f":"Tulostus!P19","v":0},{"$f":"Tulostus!Q19","v":0},0,""]
[16,{"$f":"Tulostus!B20","v":117},{"$f":"Tulostus!C20","v":"Konsta Huuki"},"OP",{"$f":"Tulostus!E20","v":0},{"$f":"Tulostus!F20","v":0},{"$f":"Tulostus!G20","v":0},{"$f":"Tulostus!H20","v":0},{"$f":"Tulostus!I20","v":0},{"$f":"Tulostus!J20","v":0},{"$f":"Tulostus!K20","v":0},{"$f":"Tulostus!L20","v":0},{"$f":"Tulostus!M20","v":0},{"$f":"Tulostus!N20","v":0},{"$f":"Tulostus!O20","v":0},{"$f":"Tulostus!P20","v":0},{"$f":"Tulostus!Q20","v":0},0,""]
[17,{"$f":"Tulostus!B21","v":118},{"$f":"Tulostus!C21","v":"Kim Junna"},"Taip",{"$f":"Tulostus!E21","v":0},{"$f":"Tulostus!F21","v":0},{"$f":"Tulostus!G21","v":0},{"$f":"Tulostus!H21","v":0},{"$f":"Tulostus!I21","v":0},{"$f":"Tulostus!J21","v":0},{"$f":"Tulostus!K21","v":0},{"$f":"Tulostus!L21","v":0},{"$f":"Tulostus!M21","v":0},{"$f":"Tulostus!N21","v":0},{"$f":"Tulostus!O21","v":0},{"$f":"Tulostus!P21","v":0},{"$f":"Tulostus!Q21","v":0},0,""]
[18,{"$f":"Tulostus!B22","v":119},{"$f":"Tulostus!C22","v":"Mikael Miettinen"},"TaSi",{"$f":"Tulostus!E22","v":0},{"$f":"Tulostus!F22","v":0},{"$f":"Tulostus!G22","v":0},{"$f":"Tulostus!H22","v":0},{"$f":"Tulostus!I22","v":0},{"$f":"Tulostus!J22","v":0},{"$f":"Tulostus!K22","v":0},{"$f":"Tulostus!L22","v":0},{"$f":"Tulostus!M22","v":0},{"$f":"Tulostus!N22","v":0},{"$f":"Tulostus!O22","v":0},{"$f":"Tulostus!P22","v":0},{"$f":"Tulostus!Q22","v":0},0,""]
[19,{"$f":"Tulostus!B23","v":120},{"$f":"Tulostus!C23","v":"Ville Hynninen"},"TaSi",{"$f":"Tulostus!E23","v":0},{"$f":"Tulostus!F23","v":0},{"$f":"Tulostus!G23","v":0},{"$f":"Tulostus!H23","v":0},{"$f":"Tulostus!I23","v":0},{"$f":"Tulostus!J23","v":0},{"$f":"Tulostus!K23","v":0},{"$f":"Tulostus!L23","v":0},{"$f":"Tulostus!M23","v":0},{"$f":"Tulostus!N23","v":0},{"$f":"Tulostus!O23","v":0},{"$f":"Tulostus!P23","v":0},{"$f":"Tulostus!Q23","v":0},0,""]
[20,{"$f":"Tulostus!B24","v":121},{"$f":"Tulostus!C24","v":"Aaron Hotanen"},"TuPy",{"$f":"Tulostus!E24","v":0},{"$f":"Tulostus!F24","v":0},{"$f":"Tulostus!G24","v":0},{"$f":"Tulostus!H24","v":0},{"$f":"Tulostus!I24","v":0},{"$f":"Tulostus!J24","v":0},{"$f":"Tulostus!K24","v":0},{"$f":"Tulostus!L24","v":0},{"$f":"Tulostus!M24","v":0},{"$f":"Tulostus!N24","v":0},{"$f":"Tulostus!O24","v":0},{"$f":"Tulostus!P24","v":0},{"$f":"Tulostus!Q24","v":0},0,""]
[21,{"$f":"Tulostus!B25","v":122},{"$f":"Tulostus!C25","v":"Oz Ekholm"},"TuPy",{"$f":"Tulostus!E25","v":0},{"$f":"Tulostus!F25","v":0},{"$f":"Tulostus!G25","v":0},{"$f":"Tulostus!H25","v":0},{"$f":"Tulostus!I25","v":0},{"$f":"Tulostus!J25","v":0},{"$f":"Tulostus!K25","v":0},{"$f":"Tulostus!L25","v":0},{"$f":"Tulostus!M25","v":0},{"$f":"Tulostus!N25","v":0},{"$f":"Tulostus!O25","v":0},{"$f":"Tulostus!P25","v":0},{"$f":"Tulostus!Q25","v":0},0,""]
[22,{"$f":"Tulostus!B26","v":123},{"$f":"Tulostus!C26","v":"Samuel Oporta"},"TuPy",{"$f":"Tulostus!E26","v":0},{"$f":"Tulostus!F26","v":0},{"$f":"Tulostus!G26","v":0},{"$f":"Tulostus!H26","v":0},{"$f":"Tulostus!I26","v":0},{"$f":"Tulostus!J26","v":0},{"$f":"Tulostus!K26","v":0},{"$f":"Tulostus!L26","v":0},{"$f":"Tulostus!M26","v":0},{"$f":"Tulostus!N26","v":0},{"$f":"Tulostus!O26","v":0},{"$f":"Tulostus!P26","v":0},{"$f":"Tulostus!Q26","v":0},0,""]
[23,{"$f":"Tulostus!B27","v":124},{"$f":"Tulostus!C27","v":"Juho Kanerva"},"TuUL",{"$f":"Tulostus!E27","v":0},{"$f":"Tulostus!F27","v":0},{"$f":"Tulostus!G27","v":0},{"$f":"Tulostus!H27","v":0},{"$f":"Tulostus!I27","v":0},{"$f":"Tulostus!J27","v":0},{"$f":"Tulostus!K27","v":0},{"$f":"Tulostus!L27","v":0},{"$f":"Tulostus!M27","v":0},{"$f":"Tulostus!N27","v":0},{"$f":"Tulostus!O27","v":0},{"$f":"Tulostus!P27","v":0},{"$f":"Tulostus!Q27","v":0},0,""]
[24,{"$f":"Tulostus!B28","v":125},{"$f":"Tulostus!C28","v":"Olli Kanerva"},"TuUL",{"$f":"Tulostus!E28","v":0},{"$f":"Tulostus!F28","v":0},{"$f":"Tulostus!G28","v":0},{"$f":"Tulostus!H28","v":0},{"$f":"Tulostus!I28","v":0},{"$f":"Tulostus!J28","v":0},{"$f":"Tulostus!K28","v":0},{"$f":"Tulostus!L28","v":0},{"$f":"Tulostus!M28","v":0},{"$f":"Tulostus!N28","v":0},{"$f":"Tulostus!O28","v":0},{"$f":"Tulostus!P28","v":0},{"$f":"Tulostus!Q28","v":0},0,""]
[25,{"$f":"Tulostus!B29","v":126},{"$f":"Tulostus!C29","v":"Sami Aalto"},"TuUL",{"$f":"Tulostus!E29","v":0},{"$f":"Tulostus!F29","v":0},{"$f":"Tulostus!G29","v":0},{"$f":"Tulostus!H29","v":0},{"$f":"Tulostus!I29","v":0},{"$f":"Tulostus!J29","v":0},{"$f":"Tulostus!K29","v":0},{"$f":"Tulostus!L29","v":0},{"$f":"Tulostus!M29","v":0},{"$f":"Tulostus!N29","v":0},{"$f":"Tulostus!O29","v":0},{"$f":"Tulostus!P29","v":0},{"$f":"Tulostus!Q29","v":0},0,""]
[26,{"$f":"Tulostus!B30","v":127},{"$f":"Tulostus!C30","v":"Aaro Lamberg"},"VSH",{"$f":"Tulostus!E30","v":0},{"$f":"Tulostus!F30","v":0},{"$f":"Tulostus!G30","v":0},{"$f":"Tulostus!H30","v":0},{"$f":"Tulostus!I30","v":0},{"$f":"Tulostus!J30","v":0},{"$f":"Tulostus!K30","v":0},{"$f":"Tulostus!L30","v":0},{"$f":"Tulostus!M30","v":0},{"$f":"Tulostus!N30","v":0},{"$f":"Tulostus!O30","v":0},{"$f":"Tulostus!P30","v":0},{"$f":"Tulostus!Q30","v":0},0,""]
[27,{"$f":"Tulostus!B31","v":128},{"$f":"Tulostus!C31","v":"Jouko Koskinen"},"VSH",{"$f":"Tulostus!E31","v":0},{"$f":"Tulostus!F31","v":0},{"$f":"Tulostus!G31","v":0},{"$f":"Tulostus!H31","v":0},{"$f":"Tulostus!I31","v":0},{"$f":"Tulostus!J31","v":0},{"$f":"Tulostus!K31","v":0},{"$f":"Tulostus!L31","v":0},{"$f":"Tulostus!M31","v":0},{"$f":"Tulostus!N31","v":0},{"$f":"Tulostus!O31","v":0},{"$f":"Tulostus!P31","v":0},{"$f":"Tulostus!Q31","v":0},0,""]
[28,{"$f":"Tulostus!B32","v":129},{"$f":"Tulostus!C32","v":"Kasper Holopainen"},"VSH",{"$f":"Tulostus!E32","v":0},{"$f":"Tulostus!F32","v":0},{"$f":"Tulostus!G32","v":0},{"$f":"Tulostus!H32","v":0},{"$f":"Tulostus!I32","v":0},{"$f":"Tulostus!J32","v":0},{"$f":"Tulostus!K32","v":0},{"$f":"Tulostus!L32","v":0},{"$f":"Tulostus!M32","v":0},{"$f":"Tulostus!N32","v":0},{"$f":"Tulostus!O32","v":0},{"$f":"Tulostus!P32","v":0},{"$f":"Tulostus!Q32","v":0},0,""]
[29,{"$f":"Tulostus!B33","v":130},{"$f":"Tulostus!C33","v":"Petrus Laulumaa"},"VSH",{"$f":"Tulostus!E33","v":0},{"$f":"Tulostus!F33","v":0},{"$f":"Tulostus!G33","v":0},{"$f":"Tulostus!H33","v":0},{"$f":"Tulostus!I33","v":0},{"$f":"Tulostus!J33","v":0},{"$f":"Tulostus!K33","v":0},{"$f":"Tulostus!L33","v":0},{"$f":"Tulostus!M33","v":0},{"$f":"Tulostus!N33","v":0},{"$f":"Tulostus!O33","v":0},{"$f":"Tulostus!P33","v":0},{"$f":"Tulostus!Q33","v":0},null,""]
[30,{"$f":"Tulostus!B34","v":131},{"$f":"Tulostus!C34","v":"Timo Niemelä"},"VSH",{"$f":"Tulostus!E34","v":0},{"$f":"Tulostus!F34","v":0},{"$f":"Tulostus!G34","v":0},{"$f":"Tulostus!H34","v":0},{"$f":"Tulostus!I34","v":0},{"$f":"Tulostus!J34","v":0},{"$f":"Tulostus!K34","v":0},{"$f":"Tulostus!L34","v":0},{"$f":"Tulostus!M34","v":0},{"$f":"Tulostus!N34","v":0},{"$f":"Tulostus!O34","v":0},{"$f":"Tulostus!P34","v":0},{"$f":"Tulostus!Q34","v":0},{"$f":"Q34-$Q$5","v":0},""]
[31,{"$f":"Tulostus!B35","v":132},{"$f":"Tulostus!C35","v":"Tomi Tuuha"},"VSH",{"$f":"Tulostus!E35","v":0},{"$f":"Tulostus!F35","v":0},{"$f":"Tulostus!G35","v":0},{"$f":"Tulostus!H35","v":0},{"$f":"Tulostus!I35","v":0},{"$f":"Tulostus!J35","v":0},{"$f":"Tulostus!K35","v":0},{"$f":"Tulostus!L35","v":0},{"$f":"Tulostus!M35","v":0},{"$f":"Tulostus!N35","v":0},{"$f":"Tulostus!O35","v":0},{"$f":"Tulostus!P35","v":0},{"$f":"Tulostus!Q35","v":0},null,""]
[32,{"$f":"Tulostus!B36","v":133},{"$f":"Tulostus!C36","v":"Jarkko Pekkanen"},"VSK-U",{"$f":"Tulostus!E36","v":0},{"$f":"Tulostus!F36","v":0},{"$f":"Tulostus!G36","v":0},{"$f":"Tulostus!H36","v":0},{"$f":"Tulostus!I36","v":0},{"$f":"Tulostus!J36","v":0},{"$f":"Tulostus!K36","v":0},{"$f":"Tulostus!L36","v":0},{"$f":"Tulostus!M36","v":0},{"$f":"Tulostus!N36","v":0},{"$f":"Tulostus!O36","v":0},{"$f":"Tulostus!P36","v":0},{"$f":"Tulostus!Q36","v":0},{"$f":"Q36-$Q$5","v":0},""]

{"sheet":"FinaaliPH","index":7,"n_rows":40,"n_cols":10,"rows_kept":40,"cut":false,"hidden":false,"merged":[[0,6,0,7],[1,0,1,2],[12,6,12,7],[13,0,13,2],[0,4,0,5],[12,4,12,5]]}
[{"$f":"Asetukset!C21","v":1},{"$f":"kuka1","v":127},{"$f":"IF($B1<=0,\"\",VLOOKUP($B1,permanto,C$40,FALSE))","v":"Aaro Lamberg"},null,{"$f":"IF($B1<=0,\"\",VLOOKUP($B1,permanto,E$40,FALSE))","v":0},{"$f":"IF($B1<=0,\"\",VLOOKUP($B1,permanto,F$40,FALSE))","v":{"$error":"#VALUE!"}},{"$f":"IF($B1<=0,\"\",VLOOKUP($B1,permanto,G$40,FALSE))","v":0},{"$f":"IF($B1<=0,\"\",VLOOKUP($B1,permanto,H$40,FALSE))","v":{"$error":"#VALUE!"}}]
["Permanto",null,null,null,null,null,null,""]
[0,"Nr","Nimi","Seura","D","väh","E","Yhteensä"]
[1,{"$f":"PermantoT!B5","v":102},{"$f":"PermantoT!C5","v":"Heikki Niva"},{"$f":"VLOOKUP(B4,nimilista,6,FALSE)","v":"EsTT"},{"$f":"PermantoT!E5","v":0},{"$f":"PermantoT!F5","v":""},{"$f":"PermantoT!G5","v":0},{"$f":"PermantoT!H5","v":0},null,{"$f":"IF((H4=H3),IF((H4=0),\"\",\"tie\"),\"\")","v":""}]
[2,{"$f":"PermantoT!B6","v":103},{"$f":"PermantoT!C6","v":"Ilkka Kuusela"},"EsTT",{"$f":"PermantoT!E6","v":0},{"$f":"PermantoT!F6","v":""},{"$f":"PermantoT!G6","v":0},{"$f":"PermantoT!H6","v":0},null,""]
[3,{"$f":"PermantoT!B7","v":104},{"$f":"PermantoT!C7","v":"Milo Siivonen"},"EsTT",{"$f":"PermantoT!E7","v":0},{"$f":"PermantoT!F7","v":""},{"$f":"PermantoT!G7","v":0},{"$f":"PermantoT!H7","v":0},null,""]
[4,{"$f":"PermantoT!B8","v":105},{"$f":"PermantoT!C8","v":"Oskar Kirmes"},"EsTT",{"$f":"PermantoT!E8","v":0},{"$f":"PermantoT!F8","v":""},{"$f":"PermantoT!G8","v":0},{"$f":"PermantoT!H8","v":0},null,""]
[5,{"$f":"PermantoT!B9","v":106},{"$f":"PermantoT!C9","v":"Henrik Petterson"},"HGK",{"$f":"PermantoT!E9","v":0},{"$f":"PermantoT!F9","v":""},{"$f":"PermantoT!G9","v":0},{"$f":"PermantoT!H9","v":0},null,""]
[6,{"$f":"PermantoT!B10","v":107},{"$f":"PermantoT!C10","v":"Artturi Lobski"},"JyVo",{"$f":"PermantoT!E10","v":0},{"$f":"PermantoT!F10","v":""},{"$f":"PermantoT!G10","v":0},{"$f":"PermantoT!H10","v":0},null,""]
[7,{"$f":"PermantoT!B11","v":108},{"$f":"PermantoT!C11","v":"Heikki Saarenketo"},"JyVo",{"$f":"PermantoT!E11","v":0},{"$f":"PermantoT!F11","v":""},{"$f":"PermantoT!G11","v":0},{"$f":"PermantoT!H11","v":0},null,""]
[8,{"$f":"PermantoT!B12","v":109},{"$f":"PermantoT!C12","v":"Janne Haapajoki"},"JyVo",{"$f":"PermantoT!E12","v":0},{"$f":"PermantoT!F12","v":""},{"$f":"PermantoT!G12","v":0},{"$f":"PermantoT!H12","v":0},null,""]
[]
[1,{"$f":"kuka2","v":105},{"$f":"IF($B13<=0,\"\",VLOOKUP($B13,hevonen,C$40,FALSE))","v":"Oskar Kirmes"},null,{"$f":"IF($B13<=0,\"\",VLOOKUP($B13,hevonen,E$40,FALSE))","v":0},{"$f":"IF($B13<=0,\"\",VLOOKUP($B13,hevonen,F$40,FALSE))","v":{"$error":"#VALUE!"}},{"$f":"IF($B13<=0,\"\",VLOOKUP($B13,hevonen,G$40,FALSE))","v":0},{"$f":"IF($B13<=0,\"\",VLOOKUP($B13,hevonen,H$40,FALSE))","v":{"$error":"#VALUE!"}}]
["Hevonen",null,null,null,null,null,null,""]
[0,"Nr","Nimi","Seura","D","väh","E","Yhteensä"]
[1,{"$f":"HevonenT!B5","v":102},{"$f":"HevonenT!C5","v":"Heikki Niva"},{"$f":"VLOOKUP(B16,nimilista,6,FALSE)","v":"EsTT"},{"$f":"HevonenT!E5","v":0},{"$f":"HevonenT!F5","v":""},{"$f":"HevonenT!G5","v":0},{"$f":"HevonenT!H5","v":0},null,{"$f":"IF((H16=H15),IF((H16=0),\"\",\"tie\"),\"\")","v":""}]
[2,{"$f":"HevonenT!B6","v":103},{"$f":"HevonenT!C6","v":"Ilkka Kuusela"},"EsTT",{"$f":"HevonenT!E6","v":0},{"$f":"HevonenT!F6","v":""},{"$f":"HevonenT!G6","v":0},{"$f":"HevonenT!H6","v":0},null,""]
[3,{"$f":"HevonenT!B7","v":104},{"$f":"HevonenT!C7","v":"Milo Siivonen"},"EsTT",{"$f":"HevonenT!E7","v":0},{"$f":"HevonenT!F7","v":""},{"$f":"HevonenT!G7","v":0},{"$f":"HevonenT!H7","v":0},null,""]
[4,{"$f":"HevonenT!B8","v":105},{"$f":"HevonenT!C8","v":"Oskar Kirmes"},"EsTT",{"$f":"HevonenT!E8","v":0},{"$f":"HevonenT!F8","v":""},{"$f":"HevonenT!G8","v":0},{"$f":"HevonenT!H8","v":0},null,""]
[5,{"$f":"HevonenT!B9","v":106},{"$f":"HevonenT!C9","v":"Henrik Petterson"},"HGK",{"$f":"HevonenT!E9","v":0},{"$f":"HevonenT!F9","v":""},{"$f":"HevonenT!G9","v":0},{"$f":"HevonenT!H9","v":0},null,""]
[6,{"$f":"HevonenT!B10","v":107},{"$f":"HevonenT!C10","v":"Artturi Lobski"},"JyVo",{"$f":"HevonenT!E10","v":0},{"$f":"HevonenT!F10","v":""},{"$f":"HevonenT!G10","v":0},{"$f":"HevonenT!H10","v":0},null,""]
[7,{"$f":"HevonenT!B11","v":108},{"$f":"HevonenT!C11","v":"Heikki Saarenketo"},"JyVo",{"$f":"HevonenT!E11","v":0},{"$f":"HevonenT!F11","v":""},{"$f":"HevonenT!G11","v":0},{"$f":"HevonenT!H11","v":0},null,""]
[8,{"$f":"HevonenT!B12","v":109},{"$f":"HevonenT!C12","v":"Janne Haapajoki"},"JyVo",{"$f":"HevonenT!E12","v":0},{"$f":"HevonenT!F12","v":""},{"$f":"HevonenT!G12","v":0},{"$f":"HevonenT!H12","v":0},null,""]
[]
[]
[]
[]
[]
[]
[]
[]
[]
[]
[]
[]
[]
[]
[]
[]
["Hakusarkkeet",null,2,null,5,null,12]

{"sheet":"FinaaliRH","index":8,"n_rows":40,"n_cols":15,"rows_kept":40,"cut":false,"hidden":false,"merged":[[12,12,12,13],[13,0,13,2],[0,6,0,7],[1,0,1,2],[12,6,12,7],[12,10,12,11],[0,4,0,5],[12,4,12,5]]}
[1,{"$f":"kuka1","v":127},{"$f":"IF($B1<=0,\"\",VLOOKUP($B1,renkaat,C$40,FALSE))","v":"Aaro Lamberg"},null,{"$f":"IF($B1<=0,\"\",VLOOKUP($B1,renkaat,E$40,FALSE))","v":0},{"$f":"IF($B1<=0,\"\",VLOOKUP($B1,rekki,F$40,FALSE))","v":{"$error":"#VALUE!"}},{"$f":"IF($B1<=0,\"\",VLOOKUP($B1,renkaat,G$40,FALSE))","v":0},{"$f":"IF($B1<=0,\"\",VLOOKUP($B1,rekki,H$40,FALSE))","v":{"$error":"#VALUE!"}}]
["Renkaat",null,null,null,null,null,null,""]
[0,"Nr","Nimi","Seura","D","väh","E","Yhteensä"]
[1,{"$f":"RenkaatT!B5","v":102},{"$f":"RenkaatT!C5","v":"Heikki Niva"},{"$f":"VLOOKUP(B4,nimilista,6,FALSE)","v":"EsTT"},{"$f":"RenkaatT!E5","v":0},{"$f":"RenkaatT!F5","v":""},{"$f":"RenkaatT!G5","v":0},{"$f":"RenkaatT!H5","v":0},null,{"$f":"IF((H4=H3),IF((H4=0),\"\",\"tie\"),\"\")","v":""}]
[2,{"$f":"RenkaatT!B6","v":103},{"$f":"RenkaatT!C6","v":"Ilkka Kuusela"},"EsTT",{"$f":"RenkaatT!E6","v":0},{"$f":"RenkaatT!F6","v":""},{"$f":"RenkaatT!G6","v":0},{"$f":"RenkaatT!H6","v":0},null,""]
[3,{"$f":"RenkaatT!B7","v":104},{"$f":"RenkaatT!C7","v":"Milo Siivonen"},"EsTT",{"$f":"RenkaatT!E7","v":0},{"$f":"RenkaatT!F7","v":""},{"$f":"RenkaatT!G7","v":0},{"$f":"RenkaatT!H7","v":0},null,""]
[4,{"$f":"RenkaatT!B8","v":105},{"$f":"RenkaatT!C8","v":"Oskar Kirmes"},"EsTT",{"$f":"RenkaatT!E8","v":0},{"$f":"RenkaatT!F8","v":""},{"$f":"RenkaatT!G8","v":0},{"$f":"RenkaatT!H8","v":0},null,""]
[5,{"$f":"RenkaatT!B9","v":106},{"$f":"RenkaatT!C9","v":"Henrik Petterson"},"HGK",{"$f":"RenkaatT!E9","v":0},{"$f":"RenkaatT!F9","v":""},{"$f":"RenkaatT!G9","v":0},{"$f":"RenkaatT!H9","v":0},null,""]
[6,{"$f":"RenkaatT!B10","v":107},{"$f":"RenkaatT!C10","v":"Artturi Lobski"},"JyVo",{"$f":"RenkaatT!E10","v":0},{"$f":"RenkaatT!F10","v":""},{"$f":"RenkaatT!G10","v":0},{"$f":"RenkaatT!H10","v":0},null,""]
[7,{"$f":"RenkaatT!B11","v":108},{"$f":"RenkaatT!C11","v":"Heikki Saarenketo"},"JyVo",{"$f":"RenkaatT!E11","v":0},{"$f":"RenkaatT!F11","v":""},{"$f":"RenkaatT!G11","v":0},{"$f":"RenkaatT!H11","v":0},null,""]
[8,{"$f":"RenkaatT!B12","v":109},{"$f":"RenkaatT!C12","v":"Janne Haapajoki"},"JyVo",{"$f":"RenkaatT!E12","v":0},{"$f":"RenkaatT!F12","v":""},{"$f":"RenkaatT!G12","v":0},{"$f":"RenkaatT!H12","v":0},null,""]
[]
[1,{"$f":"kuka2","v":105},{"$f":"IF($B13<=0,\"\",VLOOKUP($B13,hyppy,C$40,FALSE))","v":"Oskar Kirmes"},null,{"$f":"IF($B13<=0,\"\",VLOOKUP($B13,Permanto!$B$3:$M$43,E$40,FALSE))","v":0},{"$f":"IF($B13<=0,\"\",VLOOKUP($B13,Permanto!$B$3:$M$43,F$40,FALSE))","v":{"$error":"#VALUE!"}},{"$f":"IF($B13<=0,\"\",VLOOKUP($B13,hyppy,G$40,FALSE))","v":0},{"$f":"IF($B13<=0,\"\",VLOOKUP($B13,hyppy,H$40,FALSE))","v":{"$error":"#VALUE!"}},{"$f":"IF($B13<=0,\"\",VLOOKUP($B13,hyppy,I$40,FALSE))","v":0},null,{"$f":"IF($B13<=0,\"\",VLOOKUP($B13,hyppy,K$40,FALSE))","v":0},{"$f":"IF($B13<=0,\"\",VLOOKUP($B13,hyppy,L$40,FALSE))","v":{"$error":"#VALUE!"}},{"$f":"IF($B13<=0,\"\",VLOOKUP($B13,hyppy,M$40,FALSE))","v":""},{"$f":"IF($B13<=0,\"\",VLOOKUP($B13,hyppy,N$40,FALSE))","v":{"$error":"#VALUE!"}}]
["Hyppy",null,null,null,null,"1",null,"",null,"2",null,"",null,null,{"$f":"IF((M14=M19),IF((M14=0),\"\",\"tie\"),\"\")","v":""}]
[0,"Nr","Nimi","Seura","D","väh","E","Yhteensä","D","väh","E","Yhteensä","Tulos"]
[1,{"$f":"HyppyT!B5","v":102},{"$f":"HyppyT!C5","v":"Heikki Niva"},{"$f":"VLOOKUP(B16,nimilista,6,FALSE)","v":"EsTT"},{"$f":"HyppyT!E5","v":0},{"$f":"HyppyT!F5","v":""},{"$f":"HyppyT!G5","v":0},{"$f":"HyppyT!H5","v":0},{"$f":"HyppyT!I5","v":0},{"$f":"HyppyT!J5","v":""},{"$f":"HyppyT!K5","v":0},{"$f":"HyppyT!L5","v":0},{"$f":"HyppyT!M5","v":0},null,{"$f":"IF((M16=M15),IF((M16=0),\"\",\"tie\"),\"\")","v":""}]
[2,{"$f":"HyppyT!B6","v":103},{"$f":"HyppyT!C6","v":"Ilkka Kuusela"},"EsTT",{"$f":"HyppyT!E6","v":0},{"$f":"HyppyT!F6","v":""},{"$f":"HyppyT!G6","v":0},{"$f":"HyppyT!H6","v":0},{"$f":"HyppyT!I6","v":0},{"$f":"HyppyT!J6","v":""},{"$f":"HyppyT!K6","v":0},{"$f":"HyppyT!L6","v":0},{"$f":"HyppyT!M6","v":0},null,{"$f":"IF((M17=M16),IF((M17=0),\"\",\"tie\"),\"\")","v":""}]
[3,{"$f":"HyppyT!B7","v":104},{"$f":"HyppyT!C7","v":"Milo Siivonen"},"EsTT",{"$f":"HyppyT!E7","v":0},{"$f":"HyppyT!F7","v":""},{"$f":"HyppyT!G7","v":0},{"$f":"HyppyT!H7","v":0},{"$f":"HyppyT!I7","v":0},{"$f":"HyppyT!J7","v":""},{"$f":"HyppyT!K7","v":0},{"$f":"HyppyT!L7","v":0},{"$f":"HyppyT!M7","v":0},null,{"$f":"IF((M18=M17),IF((M18=0),\"\",\"tie\"),\"\")","v":""}]
[4,{"$f":"HyppyT!B8","v":105},{"$f":"HyppyT!C8","v":"Oskar Kirmes"},"EsTT",{"$f":"HyppyT!E8","v":0},{"$f":"HyppyT!F8","v":""},{"$f":"HyppyT!G8","v":0},{"$f":"HyppyT!H8","v":0},{"$f":"HyppyT!I8","v":0},{"$f":"HyppyT!J8","v":""},{"$f":"HyppyT!K8","v":0},{"$f":"HyppyT!L8","v":0},{"$f":"HyppyT!M8","v":0},null,{"$f":"IF((M19=M18),IF((M19=0),\"\",\"tie\"),\"\")","v":""}]
[5,{"$f":"HyppyT!B9","v":106},{"$f":"HyppyT!C9","v":"Henrik Petterson"},"HGK",{"$f":"HyppyT!E9","v":0},{"$f":"HyppyT!F9","v":""},{"$f":"HyppyT!G9","v":0},{"$f":"HyppyT!H9","v":0},{"$f":"HyppyT!I9","v":0},{"$f":"HyppyT!J9","v":""},{"$f":"HyppyT!K9","v":0},{"$f":"HyppyT!L9","v":0},{"$f":"HyppyT!M9","v":0},null,{"$f":"IF((M20=M14),IF((M20=0),\"\",\"tie\"),\"\")","v":""}]
[6,{"$f":"HyppyT!B10","v":107},{"$f":"HyppyT!C10","v":"Artturi Lobski"},"JyVo",{"$f":"HyppyT!E10","v":0},{"$f":"HyppyT!F10","v":""},{"$f":"HyppyT!G10","v":0},{"$f":"HyppyT!H10","v":0},{"$f":"HyppyT!I10","v":0},{"$f":"HyppyT!J10","v":""},{"$f":"HyppyT!K10","v":0},{"$f":"HyppyT!L10","v":0},{"$f":"HyppyT!M10","v":0},null,{"$f":"IF((M21=M20),IF((M21=0),\"\",\"tie\"),\"\")","v":""}]
[7,{"$f":"HyppyT!B11","v":108},{"$f":"HyppyT!C11","v":"Heikki Saarenketo"},"JyVo",{"$f":"HyppyT!E11","v":0},{"$f":"HyppyT!F11","v":""},{"$f":"HyppyT!G11","v":0},{"$f":"HyppyT!H11","v":0},{"$f":"HyppyT!I11","v":0},{"$f":"HyppyT!J11","v":""},{"$f":"HyppyT!K11","v":0},{"$f":"HyppyT!L11","v":0},{"$f":"HyppyT!M11","v":0},null,{"$f":"IF((M22=M21),IF((M22=0),\"\",\"tie\"),\"\")","v":""}]
[8,{"$f":"HyppyT!B12","v":109},{"$f":"HyppyT!C12","v":"Janne Haapajoki"},"JyVo",{"$f":"HyppyT!E12","v":0},{"$f":"HyppyT!F12","v":""},{"$f":"HyppyT!G12","v":0},{"$f":"HyppyT!H12","v":0},{"$f":"HyppyT!I12","v":0},{"$f":"HyppyT!J12","v":""},{"$f":"HyppyT!K12","v":0},{"$f":"HyppyT!L12","v":0},{"$f":"HyppyT!M12","v":0},null,{"$f":"IF((M23=M22),IF((M23=0),\"\",\"tie\"),\"\")","v":""}]
[]
[]
[]
[]
[]
[]
[]
[]
[]
[]
[]
[]
[]
[]
[]
[]
["Hakusarkkeet",null,2,null,5,null,12,null,14,null,21,null,22]

{"sheet":"FinaaliNR","index":9,"n_rows":40,"n_cols":10,"rows_kept":40,"cut":false,"hidden":false,"merged":[[0,6,0,7],[1,0,1,2],[12,6,12,7],[13,0,13,2],[0,4,0,5],[12,4,12,5]]}
[1,{"$f":"kuka1","v":127},{"$f":"IF($B1<=0,\"\",VLOOKUP($B1,nojapuut,C$40,FALSE))","v":"Aaro Lamberg"},null,{"$f":"IF($B1<=0,\"\",VLOOKUP($B1,nojapuut,E$40,FALSE))","v":0},{"$f":"IF($B1<=0,\"\",VLOOKUP($B1,nojapuut,F$40,FALSE))","v":{"$error":"#VALUE!"}},{"$f":"IF($B1<=0,\"\",VLOOKUP($B1,nojapuut,G$40,FALSE))","v":0},{"$f":"IF($B1<=0,\"\",VLOOKUP($B1,nojapuut,H$40,FALSE))","v":{"$error":"#VALUE!"}}]
["Nojapuut",null,null,null,null,null,null,""]
[0,"Nr","Nimi","Seura","D","väh","E","Yhteensä"]
[1,{"$f":"NojapuutT!B5","v":102},{"$f":"NojapuutT!C5","v":"Heikki Niva"},{"$f":"VLOOKUP(B4,nimilista,6,FALSE)","v":"EsTT"},{"$f":"NojapuutT!E5","v":0},{"$f":"NojapuutT!F5","v":""},{"$f":"NojapuutT!G5","v":0},{"$f":"NojapuutT!H5","v":0},null,{"$f":"IF((H4=H3),IF((H4=0),\"\",\"tie\"),\"\")","v":""}]
[2,{"$f":"NojapuutT!B6","v":103},{"$f":"NojapuutT!C6","v":"Ilkka Kuusela"},"EsTT",{"$f":"NojapuutT!E6","v":0},{"$f":"NojapuutT!F6","v":""},{"$f":"NojapuutT!G6","v":0},{"$f":"NojapuutT!H6","v":0},null,""]
[3,{"$f":"NojapuutT!B7","v":104},{"$f":"NojapuutT!C7","v":"Milo Siivonen"},"EsTT",{"$f":"NojapuutT!E7","v":0},{"$f":"NojapuutT!F7","v":""},{"$f":"NojapuutT!G7","v":0},{"$f":"NojapuutT!H7","v":0},null,""]
[4,{"$f":"NojapuutT!B8","v":105},{"$f":"NojapuutT!C8","v":"Oskar Kirmes"},"EsTT",{"$f":"NojapuutT!E8","v":0},{"$f":"NojapuutT!F8","v":""},{"$f":"NojapuutT!G8","v":0},{"$f":"NojapuutT!H8","v":0},null,""]
[5,{"$f":"NojapuutT!B9","v":106},{"$f":"NojapuutT!C9","v":"Henrik Petterson"},"HGK",{"$f":"NojapuutT!E9","v":0},{"$f":"NojapuutT!F9","v":""},{"$f":"NojapuutT!G9","v":0},{"$f":"NojapuutT!H9","v":0},null,""]
[6,{"$f":"NojapuutT!B10","v":107},{"$f":"NojapuutT!C10","v":"Artturi Lobski"},"JyVo",{"$f":"NojapuutT!E10","v":0},{"$f":"NojapuutT!F10","v":""},{"$f":"NojapuutT!G10","v":0},{"$f":"NojapuutT!H10","v":0},null,""]
[7,{"$f":"NojapuutT!B11","v":108},{"$f":"NojapuutT!C11","v":"Heikki Saarenketo"},"JyVo",{"$f":"NojapuutT!E11","v":0},{"$f":"NojapuutT!F11","v":""},{"$f":"NojapuutT!G11","v":0},{"$f":"NojapuutT!H11","v":0},null,""]
[8,{"$f":"NojapuutT!B12","v":109},{"$f":"NojapuutT!C12","v":"Janne Haapajoki"},"JyVo",{"$f":"NojapuutT!E12","v":0},{"$f":"NojapuutT!F12","v":""},{"$f":"NojapuutT!G12","v":0},{"$f":"NojapuutT!H12","v":0},null,""]
[]
[1,{"$f":"kuka1","v":127},{"$f":"IF($B13<=0,\"\",VLOOKUP($B13,rekki,C$40,FALSE))","v":"Aaro Lamberg"},null,{"$f":"IF($B13<=0,\"\",VLOOKUP($B13,rekki,E$40,FALSE))","v":0},{"$f":"IF($B13<=0,\"\",VLOOKUP($B13,rekki,F$40,FALSE))","v":{"$error":"#VALUE!"}},{"$f":"IF($B13<=0,\"\",VLOOKUP($B13,rekki,G$40,FALSE))","v":0},{"$f":"IF($B13<=0,\"\",VLOOKUP($B13,rekki,H$40,FALSE))","v":{"$error":"#VALUE!"}}]
["Rekki",null,null,null,null,null,null,""]
[0,"Nr","Nimi","Seura","D","väh","E","Yhteensä"]
[1,{"$f":"RekkiT!B5","v":102},{"$f":"RekkiT!C5","v":"Heikki Niva"},{"$f":"VLOOKUP(B16,nimilista,6,FALSE)","v":"EsTT"},{"$f":"RekkiT!E5","v":0},{"$f":"RekkiT!F5","v":""},{"$f":"RekkiT!G5","v":0},{"$f":"RekkiT!H5","v":0},null,{"$f":"IF((H16=H15),IF((H16=0),\"\",\"tie\"),\"\")","v":""}]
[2,{"$f":"RekkiT!B6","v":103},{"$f":"RekkiT!C6","v":"Ilkka Kuusela"},"EsTT",{"$f":"RekkiT!E6","v":0},{"$f":"RekkiT!F6","v":""},{"$f":"RekkiT!G6","v":0},{"$f":"RekkiT!H6","v":0},null,""]
[3,{"$f":"RekkiT!B7","v":104},{"$f":"RekkiT!C7","v":"Milo Siivonen"},"EsTT",{"$f":"RekkiT!E7","v":0},{"$f":"RekkiT!F7","v":""},{"$f":"RekkiT!G7","v":0},{"$f":"RekkiT!H7","v":0},null,""]
[4,{"$f":"RekkiT!B8","v":105},{"$f":"RekkiT!C8","v":"Oskar Kirmes"},"EsTT",{"$f":"RekkiT!E8","v":0},{"$f":"RekkiT!F8","v":""},{"$f":"RekkiT!G8","v":0},{"$f":"RekkiT!H8","v":0},null,""]
[5,{"$f":"RekkiT!B9","v":106},{"$f":"RekkiT!C9","v":"Henrik Petterson"},"HGK",{"$f":"RekkiT!E9","v":0},{"$f":"RekkiT!F9","v":""},{"$f":"RekkiT!G9","v":0},{"$f":"RekkiT!H9","v":0},null,""]
[6,{"$f":"RekkiT!B10","v":107},{"$f":"RekkiT!C10","v":"Artturi Lobski"},"JyVo",{"$f":"RekkiT!E10","v":0},{"$f":"RekkiT!F10","v":""},{"$f":"RekkiT!G10","v":0},{"$f":"RekkiT!H10","v":0},null,""]
[7,{"$f":"RekkiT!B11","v":108},{"$f":"RekkiT!C11","v":"Heikki Saarenketo"},"JyVo",{"$f":"RekkiT!E11","v":0},{"$f":"RekkiT!F11","v":""},{"$f":"RekkiT!G11","v":0},{"$f":"RekkiT!H11","v":0},null,""]
[8,{"$f":"RekkiT!B12","v":109},{"$f":"RekkiT!C12","v":"Janne Haapajoki"},"JyVo",{"$f":"RekkiT!E12","v":0},{"$f":"RekkiT!F12","v":""},{"$f":"RekkiT!G12","v":0},{"$f":"RekkiT!H12","v":0},null,""]
[]
[]
[]
[]
[]
[]
[]
[]
[]
[]
[]
[]
[]
[]
[]
[]
["Hakusarkkeet",null,2,null,5,null,12]

{"sheet":"PermantoT","index":10,"n_rows":36,"n_cols":10,"rows_kept":36,"cut":false,"hidden":false,"merged":[[1,6,1,7],[1,10,1,11],[1,14,1,15],[2,0,2,2]]}
[null,null,null,{"$f":"Tulostus!D1","v":"Suomen                            mestaruuskilpailut            Jyväskylä 16.4.2011"}]
[]
["Permanto",null,null,{"$f":"tulosotsikko","v":"Miehet,karsinta"},5,11,10,12]
[0,"Nr","Nimi","Seura","D","E","väh","Yhteensä"]
[1,102,{"$f":"VLOOKUP($B5,nimilista,2,FALSE)","v":"Heikki Niva"},{"$f":"VLOOKUP($B5,nimilista,5,FALSE)","v":"Espoon Telinetaiturit"},{"$f":"VLOOKUP($B5,permanto,E$3,FALSE)","v":0},"",0,0,null,{"$f":"IF((H5=H4),IF((H5=0),\"\",\"tie\"),\"\")","v":""}]
[2,103,"Ilkka Kuusela","Espoon Telinetaiturit",0,"",0,0,null,""]
[3,104,"Milo Siivonen","Espoon Telinetaiturit",0,"",0,0,null,""]
[4,105,"Oskar Kirmes","Espoon Telinetaiturit",0,"",0,0,null,""]
[5,106,"Henrik Petterson","Helsingfors Gymnastikklubb",0,"",0,0,null,""]
[6,107,"Artturi Lobski","Jyväskylän Voimistelijat",0,"",0,0,null,""]
[7,108,"Heikki Saarenketo","Jyväskylän Voimistelijat",0,"",0,0,null,""]
[8,109,"Janne Haapajoki","Jyväskylän Voimistelijat",0,"",0,0,null,""]
[9,110,"Jarkko Harju","Jyväskylän Voimistelijat",0,"",0,0,null,""]
[10,111,"Leevi Aihos","Jyväskylän Voimistelijat",0,"",0,0,null,""]
[11,112,"Pavel Titov","Jyväskylän Voimistelijat",0,"",0,0,null,""]
[12,113,"Sakari Vekki","Jyväskylän Voimistelijat",0,"",0,0,null,""]
[13,114,"Jimi Päivänen","Kotkan Telinevoimistelijat",0,"",0,0,null,""]
[14,115,"Markku Leinonen","Kotkan Telinevoimistelijat",0,"",0,0,null,""]
[15,116,"Arttu Kesti","Oulun Pyrintö",0,"",0,0,null,""]
[16,117,"Konsta Huuki","Oulun Pyrintö",0,"",0,0,null,""]
[17,118,"Kim Junna","Taipumattomat",0,"",0,0,null,""]
[18,119,"Mikael Miettinen","Tampereen Sisu",0,"",0,0,null,""]
[19,120,"Ville Hynninen","Tampereen Sisu",0,"",0,0,null,""]
[20,121,"Aaron Hotanen","Turun Pyrkivä",0,"",0,0,null,""]
[21,122,"Oz Ekholm","Turun Pyrkivä",0,"",0,0,null,""]
[22,123,"Samuel Oporta","Turun Pyrkivä",0,"",0,0,null,""]
[23,124,"Juho Kanerva","Turun Urheiluliitto",0,"",0,0,null,""]
[24,125,"Olli Kanerva","Turun Urheiluliitto",0,"",0,0,null,""]
[25,126,"Sami Aalto","Turun Urheiluliitto",0,"",0,0,null,""]
[26,127,"Aaro Lamberg","Voimisteluseura Helsinki",0,"",0,0,null,""]
[27,128,"Jouko Koskinen","Voimisteluseura Helsinki",0,"",0,0,null,""]
[28,129,"Kasper Holopainen","Voimisteluseura Helsinki",0,"",0,0,null,""]
[29,130,"Petrus Laulumaa","Voimisteluseura Helsinki",0,"",0,0,null,""]
[30,131,"Timo Niemelä","Voimisteluseura Helsinki",0,"",0,0,null,""]
[31,132,"Tomi Tuuha","Voimisteluseura Helsinki",0,"",0,0,null,""]
[32,133,"Jarkko Pekkanen","Voimisteluseura Keski-Uusimaa",0,"",0,0,null,""]

{"sheet":"HevonenT","index":11,"n_rows":52,"n_cols":10,"rows_kept":52,"cut":false,"hidden":false,"merged":[[1,6,1,7],[1,10,1,11],[1,14,1,15],[2,0,2,2]]}
[null,null,null,{"$f":"Tulostus!D1","v":"Suomen                            mestaruuskilpailut            Jyväskylä 16.4.2011"}]
[]
["Hevonen",null,null,{"$f":"tulosotsikko","v":"Miehet,karsinta"},5,11,10,12]
[0,"Nr","Nimi","Seura","D","E","väh","Yhteensä"]
[1,102,{"$f":"VLOOKUP($B5,nimilista,2,FALSE)","v":"Heikki Niva"},{"$f":"VLOOKUP($B5,nimilista,5,FALSE)","v":"Espoon Telinetaiturit"},{"$f":"VLOOKUP($B5,hevonen,E$3,FALSE)","v":0},"",0,0,null,{"$f":"IF((H5=H4),IF((H5=0),\"\",\"tie\"),\"\")","v":""}]
[2,103,"Ilkka Kuusela","Espoon Telinetaiturit",0,"",0,0,null,""]
[3,104,"Milo Siivonen","Espoon Telinetaiturit",0,"",0,0,null,""]
[4,105,"Oskar Kirmes","Espoon Telinetaiturit",0,"",0,0,null,""]
[5,106,"Henrik Petterson","Helsingfors Gymnastikklubb",0,"",0,0,null,""]
[6,107,"Artturi Lobski","Jyväskylän Voimistelijat",0,"",0,0,null,""]
[7,108,"Heikki Saarenketo","Jyväskylän Voimistelijat",0,"",0,0,null,""]
[8,109,"Janne Haapajoki","Jyväskylän Voimistelijat",0,"",0,0,null,""]
[9,110,"Jarkko Harju","Jyväskylän Voimistelijat",0,"",0,0,null,""]
[10,111,"Leevi Aihos","Jyväskylän Voimistelijat",0,"",0,0,null,""]
[11,112,"Pavel Titov","Jyväskylän Voimistelijat",0,"",0,0,null,""]
[12,113,"Sakari Vekki","Jyväskylän Voimistelijat",0,"",0,0,null,""]
[13,114,"Jimi Päivänen","Kotkan Telinevoimistelijat",0,"",0,0,null,""]
[14,115,"Markku Leinonen","Kotkan Telinevoimistelijat",0,"",0,0,null,""]
[15,116,"Arttu Kesti","Oulun Pyrintö",0,"",0,0,null,""]
[16,117,"Konsta Huuki","Oulun Pyrintö",0,"",0,0,null,""]
[17,118,"Kim Junna","Taipumattomat",0,"",0,0,null,""]
[18,119,"Mikael Miettinen","Tampereen Sisu",0,"",0,0,null,""]
[19,120,"Ville Hynninen","Tampereen Sisu",0,"",0,0,null,""]
[20,121,"Aaron Hotanen","Turun Pyrkivä",0,"",0,0,null,""]
[21,122,"Oz Ekholm","Turun Pyrkivä",0,"",0,0,null,""]
[22,123,"Samuel Oporta","Turun Pyrkivä",0,"",0,0,null,""]
[23,124,"Juho Kanerva","Turun Urheiluliitto",0,"",0,0,null,""]
[24,125,"Olli Kanerva","Turun Urheiluliitto",0,"",0,0,null,""]
[25,126,"Sami Aalto","Turun Urheiluliitto",0,"",0,0,null,""]
[26,127,"Aaro Lamberg","Voimisteluseura Helsinki",0,"",0,0,null,""]
[27,128,"Jouko Koskinen","Voimisteluseura Helsinki",0,"",0,0,null,""]
[28,129,"Kasper Holopainen","Voimisteluseura Helsinki",0,"",0,0,null,""]
[29,130,"Petrus Laulumaa","Voimisteluseura Helsinki",0,"",0,0,null,""]
[30,131,"Timo Niemelä","Voimisteluseura Helsinki",0,"",0,0,null,""]
[31,132,"Tomi Tuuha","Voimisteluseura Helsinki",0,"",0,0,null,""]
[32,133,"Jarkko Pekkanen","Voimisteluseura Keski-Uusimaa",0,"",0,0,null,""]
[null,null,null,null,null,null,null,null,null,""]
[null,null,null,null,null,null,null,null,null,""]
[null,null,null,null,null,null,null,null,null,""]
[null,null,null,null,null,null,null,null,null,""]
[null,null,null,null,null,null,null,null,null,""]
[null,null,null,null,null,null,null,null,null,""]
[null,null,null,null,null,null,null,null,null,""]
[null,null,null,null,null,null,null,null,null,""]
[null,null,null,null,null,null,null,null,null,""]
[null,null,null,null,null,null,null,null,null,""]
[null,null,null,null,null,null,null,null,null,""]
[null,null,null,null,null,null,null,null,null,""]
[null,null,null,null,null,null,null,null,null,""]
[null,null,null,null,null,null,null,null,null,""]
[null,null,null,null,null,null,null,null,null,""]
[null,null,null,null,null,null,null,null,null,""]

{"sheet":"RenkaatT","index":12,"n_rows":52,"n_cols":10,"rows_kept":52,"cut":false,"hidden":false,"merged":[[1,6,1,7],[2,0,2,2]]}
[null,null,null,{"$f":"Tulostus!D1","v":"Suomen                            mestaruuskilpailut            Jyväskylä 16.4.2011"}]
[]
["Renkaat",null,null,{"$f":"tulosotsikko","v":"Miehet,karsinta"},5,11,10,12]
[0,"Nr","Nimi","Seura","D","E","väh","Yhteensä"]
[1,102,{"$f":"VLOOKUP($B5,nimilista,2,FALSE)","v":"Heikki Niva"},{"$f":"VLOOKUP($B5,nimilista,5,FALSE)","v":"Espoon Telinetaiturit"},{"$f":"VLOOKUP($B5,renkaat,E$3,FALSE)","v":0},"",0,0,null,{"$f":"IF((H5=H4),IF((H5=0),\"\",\"tie\"),\"\")","v":""}]
[2,103,"Ilkka Kuusela","Espoon Telinetaiturit",0,"",0,0,null,""]
[3,104,"Milo Siivonen","Espoon Telinetaiturit",0,"",0,0,null,""]
[4,105,"Oskar Kirmes","Espoon Telinetaiturit",0,"",0,0,null,""]
[5,106,"Henrik Petterson","Helsingfors Gymnastikklubb",0,"",0,0,null,""]
[6,107,"Artturi Lobski","Jyväskylän Voimistelijat",0,"",0,0,null,""]
[7,108,"Heikki Saarenketo","Jyväskylän Voimistelijat",0,"",0,0,null,""]
[8,109,"Janne Haapajoki","Jyväskylän Voimistelijat",0,"",0,0,null,""]
[9,110,"Jarkko Harju","Jyväskylän Voimistelijat",0,"",0,0,null,""]
[10,111,"Leevi Aihos","Jyväskylän Voimistelijat",0,"",0,0,null,""]
[11,112,"Pavel Titov","Jyväskylän Voimistelijat",0,"",0,0,null,""]
[12,113,"Sakari Vekki","Jyväskylän Voimistelijat",0,"",0,0,null,""]
[13,114,"Jimi Päivänen","Kotkan Telinevoimistelijat",0,"",0,0,null,""]
[14,115,"Markku Leinonen","Kotkan Telinevoimistelijat",0,"",0,0,null,""]
[15,116,"Arttu Kesti","Oulun Pyrintö",0,"",0,0,null,""]
[16,117,"Konsta Huuki","Oulun Pyrintö",0,"",0,0,null,""]
[17,118,"Kim Junna","Taipumattomat",0,"",0,0,null,""]
[18,119,"Mikael Miettinen","Tampereen Sisu",0,"",0,0,null,""]
[19,120,"Ville Hynninen","Tampereen Sisu",0,"",0,0,null,""]
[20,121,"Aaron Hotanen","Turun Pyrkivä",0,"",0,0,null,""]
[21,122,"Oz Ekholm","Turun Pyrkivä",0,"",0,0,null,""]
[22,123,"Samuel Oporta","Turun Pyrkivä",0,"",0,0,null,""]
[23,124,"Juho Kanerva","Turun Urheiluliitto",0,"",0,0,null,""]
[24,125,"Olli Kanerva","Turun Urheiluliitto",0,"",0,0,null,""]
[25,126,"Sami Aalto","Turun Urheiluliitto",0,"",0,0,null,""]
[26,127,"Aaro Lamberg","Voimisteluseura Helsinki",0,"",0,0,null,""]
[27,128,"Jouko Koskinen","Voimisteluseura Helsinki",0,"",0,0,null,""]
[28,129,"Kasper Holopainen","Voimisteluseura Helsinki",0,"",0,0,null,""]
[29,130,"Petrus Laulumaa","Voimisteluseura Helsinki",0,"",0,0,null,""]
[30,131,"Timo Niemelä","Voimisteluseura Helsinki",0,"",0,0,null,""]
[31,132,"Tomi Tuuha","Voimisteluseura Helsinki",0,"",0,0,null,""]
[32,133,"Jarkko Pekkanen","Voimisteluseura Keski-Uusimaa",0,"",0,0,null,""]
[null,null,null,null,null,null,null,null,null,""]
[null,null,null,null,null,null,null,null,null,""]
[null,null,null,null,null,null,null,null,null,""]
[null,null,null,null,null,null,null,null,null,""]
[null,null,null,null,null,null,null,null,null,""]
[null,null,null,null,null,null,null,null,null,""]
[null,null,null,null,null,null,null,null,null,""]
[null,null,null,null,null,null,null,null,null,""]
[null,null,null,null,null,null,null,null,null,""]
[null,null,null,null,null,null,null,null,null,""]
[null,null,null,null,null,null,null,null,null,""]
[null,null,null,null,null,null,null,null,null,""]
[null,null,null,null,null,null,null,null,null,""]
[null,null,null,null,null,null,null,null,null,""]
[null,null,null,null,null,null,null,null,null,""]
[null,null,null,null,null,null,null,null,null,""]

{"sheet":"HyppyT","index":13,"n_rows":52,"n_cols":15,"rows_kept":52,"cut":false,"hidden":false,"merged":[[1,14,1,15],[2,0,2,2],[0,3,0,7],[1,6,1,7],[1,10,1,11],[1,12,1,13]]}
[null,null,null,{"$f":"Tulostus!D1","v":"Suomen                            mestaruuskilpailut            Jyväskylä 16.4.2011"}]
[null,null,null,null,null,null,1,null,null,null,2]
["Hyppy",null,null,{"$f":"tulosotsikko","v":"Miehet,karsinta"},5,11,10,12,14,20,19,21]
["sij","Nr","Nimi","Seura","D","E","väh","Yhteensä","D","E","väh","Yhteensä","Tulos"]
[1,102,{"$f":"VLOOKUP($B5,nimilista,2,FALSE)","v":"Heikki Niva"},{"$f":"VLOOKUP($B5,nimilista,5,FALSE)","v":"Espoon Telinetaiturit"},{"$f":"VLOOKUP($B5,hyppy,E$3,FALSE)","v":0},"",0,0,0,"",0,0,{"$f":"(H5+L5)/2","v":0},null,{"$f":"IF((M5=M4),IF((M5=0),\"\",\"tie\"),\"\")","v":""}]
[2,103,"Ilkka Kuusela","Espoon Telinetaiturit",0,"",0,0,0,"",0,0,0,null,""]
[3,104,"Milo Siivonen","Espoon Telinetaiturit",0,"",0,0,0,"",0,0,0,null,""]
[4,105,"Oskar Kirmes","Espoon Telinetaiturit",0,"",0,0,0,"",0,0,0,null,""]
[5,106,"Henrik Petterson","Helsingfors Gymnastikklubb",0,"",0,0,0,"",0,0,0,null,""]
[6,107,"Artturi Lobski","Jyväskylän Voimistelijat",0,"",0,0,0,"",0,0,0,null,""]
[7,108,"Heikki Saarenketo","Jyväskylän Voimistelijat",0,"",0,0,0,"",0,0,0,null,""]
[8,109,"Janne Haapajoki","Jyväskylän Voimistelijat",0,"",0,0,0,"",0,0,0,null,""]
[9,110,"Jarkko Harju","Jyväskylän Voimistelijat",0,"",0,0,0,"",0,0,0,null,""]
[10,111,"Leevi Aihos","Jyväskylän Voimistelijat",0,"",0,0,0,"",0,0,0,null,""]
[11,112,"Pavel Titov","Jyväskylän Voimistelijat",{"$f":"VLOOKUP($B15,hyppy,E$3,FALSE)","v":0},"",0,0,0,"",0,0,0,null,""]
[12,113,"Sakari Vekki","Jyväskylän Voimistelijat",0,"",0,0,0,"",0,0,0,null,""]
[13,114,"Jimi Päivänen","Kotkan Telinevoimistelijat",0,"",0,0,0,"",0,0,0,null,""]
[14,115,"Markku Leinonen","Kotkan Telinevoimistelijat",0,"",0,0,0,"",0,0,0,null,""]
[15,116,"Arttu Kesti","Oulun Pyrintö",0,"",0,0,0,"",0,0,0,null,""]
[16,117,"Konsta Huuki","Oulun Pyrintö",0,"",0,0,0,"",0,0,0,null,""]
[17,118,"Kim Junna","Taipumattomat",0,"",0,0,0,"",0,0,0,null,""]
[18,119,"Mikael Miettinen","Tampereen Sisu",0,"",0,0,0,"",0,0,0,null,""]
[19,120,"Ville Hynninen","Tampereen Sisu",0,"",0,0,0,"",0,0,0,null,""]
[20,121,"Aaron Hotanen","Turun Pyrkivä",0,"",0,0,0,"",0,0,0,null,""]
[21,122,"Oz Ekholm","Turun Pyrkivä",{"$f":"VLOOKUP($B25,hyppy,E$3,FALSE)","v":0},"",0,0,0,"",0,0,0,null,""]
[22,123,"Samuel Oporta","Turun Pyrkivä",0,"",0,0,0,"",0,0,0,null,""]
[23,124,"Juho Kanerva","Turun Urheiluliitto",0,"",0,0,0,"",0,0,0,null,""]
[24,125,"Olli Kanerva","Turun Urheiluliitto",0,"",0,0,0,"",0,0,0,null,""]
[25,126,"Sami Aalto","Turun Urheiluliitto",0,"",0,0,0,"",0,0,0,null,""]
[26,127,"Aaro Lamberg","Voimisteluseura Helsinki",0,"",0,0,0,"",0,0,0,null,""]
[27,128,"Jouko Koskinen","Voimisteluseura Helsinki",0,"",0,0,0,"",0,0,0,null,""]
[28,129,"Kasper Holopainen","Voimisteluseura Helsinki",0,"",0,0,0,"",0,0,0,null,""]
[29,130,"Petrus Laulumaa","Voimisteluseura Helsinki",0,"",0,0,0,"",0,0,0,null,""]
[30,131,"Timo Niemelä","Voimisteluseura Helsinki",0,"",0,0,0,"",0,0,0,null,""]
[31,132,"Tomi Tuuha","Voimisteluseura Helsinki",0,"",0,0,0,"",0,0,0,null,""]
[32,133,"Jarkko Pekkanen","Voimisteluseura Keski-Uusimaa",0,"",0,0,0,"",0,0,0,null,""]
[]
[]
[]
[]
[]
[]
[]
[]
[]
[]
[]
[]
[]
[]
[null,null,null,null,null,null,null,null,null,{"$f":"IF((H51=H50),IF((H51=0),\"\",\"tie\"),\"\")","v":""}]
[null,null,null,null,null,null,null,null,null,{"$f":"IF((H52=H51),IF((H52=0),\"\",\"tie\"),\"\")","v":""}]

{"sheet":"NojapuutT","index":14,"n_rows":52,"n_cols":10,"rows_kept":52,"cut":false,"hidden":false,"merged":[[1,6,1,7],[2,0,2,2]]}
[null,null,null,{"$f":"Tulostus!D1","v":"Suomen                            mestaruuskilpailut            Jyväskylä 16.4.2011"}]
[]
["Nojapuut",null,null,{"$f":"tulosotsikko","v":"Miehet,karsinta"},5,11,10,12]
[0,"Nr","Nimi","Seura","D","E","väh","Yhteensä"]
[1,102,{"$f":"VLOOKUP($B5,nimilista,2,FALSE)","v":"Heikki Niva"},{"$f":"VLOOKUP($B5,nimilista,5,FALSE)","v":"Espoon Telinetaiturit"},{"$f":"VLOOKUP($B5,nojapuut,E$3,FALSE)","v":0},"",0,0,null,{"$f":"IF((H5=H4),IF((H5=0),\"\",\"tie\"),\"\")","v":""}]
[2,103,"Ilkka Kuusela","Espoon Telinetaiturit",0,"",0,0,null,""]
[3,104,"Milo Siivonen","Espoon Telinetaiturit",0,"",0,0,null,""]
[4,105,"Oskar Kirmes","Espoon Telinetaiturit",0,"",0,0,null,""]
[5,106,"Henrik Petterson","Helsingfors Gymnastikklubb",0,"",0,0,null,""]
[6,107,"Artturi Lobski","Jyväskylän Voimistelijat",0,"",0,0,null,""]
[7,108,"Heikki Saarenketo","Jyväskylän Voimistelijat",0,"",0,0,null,""]
[8,109,"Janne Haapajoki","Jyväskylän Voimistelijat",0,"",0,0,null,""]
[9,110,"Jarkko Harju","Jyväskylän Voimistelijat",0,"",0,0,null,""]
[10,111,"Leevi Aihos","Jyväskylän Voimistelijat",0,"",0,0,null,""]
[11,112,"Pavel Titov","Jyväskylän Voimistelijat",0,"",0,0,null,""]
[12,113,"Sakari Vekki","Jyväskylän Voimistelijat",0,"",0,0,null,""]
[13,114,"Jimi Päivänen","Kotkan Telinevoimistelijat",0,"",0,0,null,""]
[14,115,"Markku Leinonen","Kotkan Telinevoimistelijat",0,"",0,0,null,""]
[15,116,"Arttu Kesti","Oulun Pyrintö",0,"",0,0,null,""]
[16,117,"Konsta Huuki","Oulun Pyrintö",0,"",0,0,null,""]
[17,118,"Kim Junna","Taipumattomat",0,"",0,0,null,""]
[18,119,"Mikael Miettinen","Tampereen Sisu",0,"",0,0,null,""]
[19,120,"Ville Hynninen","Tampereen Sisu",0,"",0,0,null,""]
[20,121,"Aaron Hotanen","Turun Pyrkivä",0,"",0,0,null,""]
[21,122,"Oz Ekholm","Turun Pyrkivä",0,"",0,0,null,""]
[22,123,"Samuel Oporta","Turun Pyrkivä",0,"",0,0,null,""]
[23,124,"Juho Kanerva","Turun Urheiluliitto",0,"",0,0,null,""]
[24,125,"Olli Kanerva","Turun Urheiluliitto",0,"",0,0,null,""]
[25,126,"Sami Aalto","Turun Urheiluliitto",0,"",0,0,null,""]
[26,127,"Aaro Lamberg","Voimisteluseura Helsinki",0,"",0,0,null,""]
[27,128,"Jouko Koskinen","Voimisteluseura Helsinki",0,"",0,0,null,""]
[28,129,"Kasper Holopainen","Voimisteluseura Helsinki",0,"",0,0,null,""]
[29,130,"Petrus Laulumaa","Voimisteluseura Helsinki",0,"",0,0,null,""]
[30,131,"Timo Niemelä","Voimisteluseura Helsinki",0,"",0,0,null,""]
[31,132,"Tomi Tuuha","Voimisteluseura Helsinki",0,"",0,0,null,""]
[32,133,"Jarkko Pekkanen","Voimisteluseura Keski-Uusimaa",0,"",0,0,null,""]
[null,null,null,null,null,null,null,null,null,""]
[null,null,null,null,null,null,null,null,null,""]
[null,null,null,null,null,null,null,null,null,""]
[null,null,null,null,null,null,null,null,null,""]
[null,null,null,null,null,null,null,null,null,""]
[null,null,null,null,null,null,null,null,null,""]
[null,null,null,null,null,null,null,null,null,""]
[null,null,null,null,null,null,null,null,null,""]
[null,null,null,null,null,null,null,null,null,""]
[null,null,null,null,null,null,null,null,null,""]
[null,null,null,null,null,null,null,null,null,""]
[null,null,null,null,null,null,null,null,null,""]
[null,null,null,null,null,null,null,null,null,""]
[null,null,null,null,null,null,null,null,null,""]
[null,null,null,null,null,null,null,null,null,""]
[null,null,null,null,null,null,null,null,null,""]

{"sheet":"RekkiT","index":15,"n_rows":52,"n_cols":10,"rows_kept":52,"cut":false,"hidden":false,"merged":[[1,6,1,7],[2,0,2,2]]}
[null,null,null,{"$f":"Tulostus!D1","v":"Suomen                            mestaruuskilpailut            Jyväskylä 16.4.2011"}]
[]
["Rekki",null,null,{"$f":"tulosotsikko","v":"Miehet,karsinta"},5,11,10,12]
[0,"Nr","Nimi","Seura","D","E","väh","Yhteensä"]
[1,102,{"$f":"VLOOKUP($B5,nimilista,2,FALSE)","v":"Heikki Niva"},{"$f":"VLOOKUP($B5,nimilista,5,FALSE)","v":"Espoon Telinetaiturit"},{"$f":"VLOOKUP($B5,rekki,E$3,FALSE)","v":0},"",0,0,null,{"$f":"IF((H5=H4),IF((H5=0),\"\",\"tie\"),\"\")","v":""}]
[2,103,"Ilkka Kuusela","Espoon Telinetaiturit",0,"",0,0,null,""]
[3,104,"Milo Siivonen","Espoon Telinetaiturit",0,"",0,0,null,""]
[4,105,"Oskar Kirmes","Espoon Telinetaiturit",0,"",0,0,null,""]
[5,106,"Henrik Petterson","Helsingfors Gymnastikklubb",0,"",0,0,null,""]
[6,107,"Artturi Lobski","Jyväskylän Voimistelijat",0,"",0,0,null,""]
[7,108,"Heikki Saarenketo","Jyväskylän Voimistelijat",0,"",0,0,null,""]
[8,109,"Janne Haapajoki","Jyväskylän Voimistelijat",0,"",0,0,null,""]
[9,110,"Jarkko Harju","Jyväskylän Voimistelijat",0,"",0,0,null,""]
[10,111,"Leevi Aihos","Jyväskylän Voimistelijat",0,"",0,0,null,""]
[11,112,"Pavel Titov","Jyväskylän Voimistelijat",0,"",0,0,null,""]
[12,113,"Sakari Vekki","Jyväskylän Voimistelijat",0,"",0,0,null,""]
[13,114,"Jimi Päivänen","Kotkan Telinevoimistelijat",0,"",0,0,null,""]
[14,115,"Markku Leinonen","Kotkan Telinevoimistelijat",0,"",0,0,null,""]
[15,116,"Arttu Kesti","Oulun Pyrintö",0,"",0,0,null,""]
[16,117,"Konsta Huuki","Oulun Pyrintö",0,"",0,0,null,""]
[17,118,"Kim Junna","Taipumattomat",0,"",0,0,null,""]
[18,119,"Mikael Miettinen","Tampereen Sisu",0,"",0,0,null,""]
[19,120,"Ville Hynninen","Tampereen Sisu",0,"",0,0,null,""]
[20,121,"Aaron Hotanen","Turun Pyrkivä",0,"",0,0,null,""]
[21,122,"Oz Ekholm","Turun Pyrkivä",0,"",0,0,null,""]
[22,123,"Samuel Oporta","Turun Pyrkivä",0,"",0,0,null,""]
[23,124,"Juho Kanerva","Turun Urheiluliitto",0,"",0,0,null,""]
[24,125,"Olli Kanerva","Turun Urheiluliitto",0,"",0,0,null,""]
[25,126,"Sami Aalto","Turun Urheiluliitto",0,"",0,0,null,""]
[26,127,"Aaro Lamberg","Voimisteluseura Helsinki",0,"",0,0,null,""]
[27,128,"Jouko Koskinen","Voimisteluseura Helsinki",0,"",0,0,null,""]
[28,129,"Kasper Holopainen","Voimisteluseura Helsinki",0,"",0,0,null,""]
[29,130,"Petrus Laulumaa","Voimisteluseura Helsinki",0,"",0,0,null,""]
[30,131,"Timo Niemelä","Voimisteluseura Helsinki",0,"",0,0,null,""]
[31,132,"Tomi Tuuha","Voimisteluseura Helsinki",0,"",0,0,null,""]
[32,133,"Jarkko Pekkanen","Voimisteluseura Keski-Uusimaa",0,"",0,0,null,""]
[null,null,null,null,null,null,null,null,null,""]
[null,null,null,null,null,null,null,null,null,""]
[null,null,null,null,null,null,null,null,null,""]
[null,null,null,null,null,null,null,null,null,""]
[null,null,null,null,null,null,null,null,null,""]
[null,null,null,null,null,null,null,null,null,""]
[null,null,null,null,null,null,null,null,null,""]
[null,null,null,null,null,null,null,null,null,""]
[null,null,null,null,null,null,null,null,null,""]
[null,null,null,null,null,null,null,null,null,""]
[null,null,null,null,null,null,null,null,null,""]
[null,null,null,null,null,null,null,null,null,""]
[null,null,null,null,null,null,null,null,null,""]
[null,null,null,null,null,null,null,null,null,""]
[null,null,null,null,null,null,null,null,null,""]
[null,null,null,null,null,null,null,null,null,""]

{"sheet":"Asetukset","index":16,"n_rows":282,"n_cols":19,"rows_kept":282,"cut":false,"hidden":false,"merged":[]}
["Tällä sivulla on ohjelman asetuksia"]
["Asetuksen selitys",null,null,"yksikkö","Lisäselitystä"]
["Korostusväri tuloksen näyttämiseksi",null,36]
["Yhteensä perusväri",null,12,null,"#f8cf50","#eeddff"]
["Perusväri 2",null,"#F7CE40"]
["D-sarakkeen malli",null,9,null,"#F7CE40","#ff00ff",null,"R","G","B"]
[null,null,null,null,null,null,null,4,238,254,{"$f":"((\"#\"&DEC2HEX(H7,2))&DEC2HEX(I7,2))&DEC2HEX(J7,2)","v":"#04EEFE"},"#04EEFE"]
["Korostus kun tullaan suoritukseen",null,"Saku",null,null,null,null,234,8,24,{"$f":"((\"#\"&DEC2HEX(H8,2))&DEC2HEX(I8,2))&DEC2HEX(J8,2)","v":"#EA0818"},"#EA0818"]
["Automaattiset asetukset","Asetuksen nimi"]
["Tuloksen näyttöaika isona","tuloksennayttoaikaisona",0,"sek",null,null,null,234,238,4,{"$f":"((\"#\"&DEC2HEX(H10,2))&DEC2HEX(I10,2))&DEC2HEX(J10,2)","v":"#EAEE04"},"#EAEE04"]
["Tuloksen näyttöaika lajittelun jälkeen","tuloksennayttoaikalajittelunjalkeen",0,"sek",null,null,null,4,238,24,{"$f":"((\"#\"&DEC2HEX(H11,2))&DEC2HEX(I11,2))&DEC2HEX(J11,2)","v":"#04EE18"},"#04EE18"]
["Näytetäänkö suorittaja otsikossa","suorittajaOtsikossa",1,null,null,null,null,255,154,206,{"$f":"((\"#\"&DEC2HEX(H12,2))&DEC2HEX(I12,2))&DEC2HEX(J12,2)","v":"#FF9ACE"}]
["Näytä suorittaja taulukossa","suorittajaTaulukossa",1]
["Näytetäänkö finaaliin menijät","naytaFinaaliinMenijat",1]
["Kilpailijoita","kilpailijoidenMaara",{"$f":"COUNTA(Nimilista!C5:C100)","v":32}]
["Finaalissa kilpailijoita","kilpailijoidenMaaraFinaalissa",6]
["Finaali","isFinal",0,null,"Tähän 1 jos on finaali"]
["Viivoita tausta","viivoitaTausta",1,null,"Tähän 1 jos halutaan värjätä tausta joka toinen eri värillä"]
["Lomakkeen korkeus","appHeight",390]
["Lomakkeen leveys","appWidth",340]
["Mikä laji suorituspaikalla 1","teline1",1,null,"vaihda näitä kunlaji vaihtuu, myös kuvat",{"$f":"INDEX(lajit,teline1,1)","v":"Permanto"},{"$f":"INDEX(lajit,teline1,3)","v":"PermantoI"}]
["Mikä laji suorituspaikalla 2","teline2",6,null,"vaihda näitä kunlaji vaihtuu, myös kuvat",{"$f":"INDEX(lajit,teline2,1)","v":"Rekki"},{"$f":"INDEX(lajit,teline2,3)","v":"RekkiI"}]
["Kuka suorituspaikalla 1","kuka1",{"$f":"INDIRECT(\"\"&F21&\"!E1\")","v":127}]
["Kuka suorituspaikalla 2","kuka2",{"$f":"INDIRECT(\"\"&F22&\"!E1\")","v":105},null,{"$f":"In","v":{"$error":"#NAME?"}}]
["Tulostusotsikko","tulosotsikko","Miehet,karsinta"]
[]
[]
["Muita asetuksia"]
["Kuvatiedoston nimen alku",null,"http://users.jyu.fi/~vesal/kurssit/excel/tuloslaskenta/logot/"]
["Kuvatiedoston nimen loppu",null,"_p.png"]
[null,null,null,null,{"$f":"_xll.PISTEET(A31:D31,D30)","v":{"$error":"#NAME?"}},"",""]
["Lajiteltavat","Lajit","Sivu","Viimeinen sarake",null,"Lajit"]
[null,null,"Tulostus","Q",1,"Permanto",null,"PermantoI"]
[null,null,"HyppyT","M",2,"Hevonen",null,"HevonenI"]
[null,null,"PermantoT","H",3,"Renkaat",null,"RenkaatI"]
[null,null,"HevonenT","H",4,"Hyppy",null,"HyppyI"]
[null,null,"RenkaatT","H",5,"Nojapuut",null,"NojapuutI"]
[null,null,"NojapuutT","H",6,"Rekki",null,"RekkiI"]
[null,null,"RekkiT","H",7,"Puomi",null,"PuomiI"]
[null,null,null,null,8,"Eritasonojapuut",null,"EritasonojapuutI"]
[]
[]
["Suorituspaikat",null,"Teline","Paikka"]
["Miehet",null,"Permanto",1]
[null,null,"Hevonen",2]
[null,null,"Renkaat",1]
[null,null,"Hyppy",2]
[null,null,"Nojapuut",1]
[null,null,"Rekki",2]
[]
["Naiset",null,"Hyppy",1]
[null,null,"Eritasonojapuut",2]
[null,null,"Puomi",1]
[null,null,"Permanto",2]
[]
[]
[]
[]
["Nimetyt alueet"]
[]
[]
[]
[]
[]
[]
[]
[]
[]
[]
[null,"Nimetyt alueet"]
[null,"suorittajaOtsikossa","Asetukset!C11"]
[null,"kuvaalku","Asetukset!C21"]
[null,"finaalissaKilpailijoita","Asetukset!C15"]
[null,"finaali","Asetukset!C17"]
[null,"kaavaAlue","Tulokset!E5:P34"]
[null,"korostusvari","Asetukset!C3"]
[null,"tuloksenTaustavari","Asetukset!C4"]
[null,"kilpailijoita","Asetukset!C14"]
[null,"naytaFinaaliinMenijat","Asetukset!C13"]
[null,"tulosalue","Tulokset!A5:R34"]
[null,"tuloksenTaustavari2","Asetukset!C5"]
[null,"kuvaloppu","Asetukset!C22"]
[null,"DsarakkeenMalli","Asetukset!C6"]
[null,"tuloksennayttoaikaisona","Asetukset!C9"]
[null,"suorituskorostus","Asetukset!C8"]
[null,"tuloksennayttoaikalajittelunjalkeen","Asetukset!C10"]
[null,"viivoitaTausta","Asetukset!C18"]
[null,"suorittajaTaulukossa","Asetukset!C12"]
[null,"appHeight","Asetukset!C19"]
[null,"appWidth","Asetukset!C20"]
[]
[]
[]
[]
[]
[]
[]
[]
[]
[]
[]
[]
[]
[]
[]
[]
[]
[]
[]
[]
[]
[]
[]
[]
[]
[]
[]
[]
[]
[]
[]
[]
[]
[]
[]
[]
[]
[]
[]
[]
[]
[]
[]
[]
[" "]
["riviä loppuun."]
[" "]
[1]
["Asetuksen selitys==="]
[]
["==="]
["Asetuksen selitys"]
[35]
[null,"palauta loppu"]
[5]
[null,1,2,"Sami Salo","STV",3,11.15,6,15.75,4,10.6,2,10,1,9,4.9000000000000004,13.95,70.45,0]
[6]
[null,2,8,"Teemu Selänne","HTV",3,12,4,7,2,11,4,13,3,12,5,14.55,69.55,-0.9]
[7]
[null,3,4,"Ossi Väänänen","KTV",5,12.85,2,11,4,13,2,10,1.2,10.1,2,10.5,67.45,-3]
[8]
[null,4,1,"Kari Lehtonen","HTV",3,7.5,1,10,2,11,1,10,5.2,13.9,52.4,-18.05]
[9]
[null,5,10,"Toni Rajala","HTV",6,15,1,10,3,10,3,12,3,12,59,-11.45]
[10]
[null,6,22,"Ville Leino","STV",2.2000000000000002,10.55,2,11,3,12,6.2,15,1,10,58.55,-11.9]
[11]
[null,7,3,"Antti Jaatinen","KTV",1.7,10.050000000000001,3,11,1,10,3.2,12.25,43.3,-27.15]
[12]
[null,8,11,"Saku Koivu","HTV",4,12,2,9,4,13,1,8,42,-28.45]
[13]
[null,9,12,"Jani Tuppurainen","Jyvo",2,10.4,1,9.9,1,9,1,10,39.299999999999997,-31.15]
[14]
[null,10,15,"Juha-Pekka Hytönen","Jyvo",2,10.35,2,8.75,1,10,1,9,38.1,-32.35]
[15]
[null,11,6,"Teemu Pulkkinen","TTV",5,13.35,2,11,2,11,35.35,-35.1]
[16]
[null,12,23,"Ossi Louhivaara","Jyvo",1.8,9.8000000000000007,4,11.85,2,11,32.65,-37.799999999999997]
[17]
[null,13,17,"Jari Jääskeläinen","Jyvo",1.8,9.75,2,9.6,4.5,12.75,32.1,-38.35]
[18]
[null,14,14,"Pekka Jormakka","Jyvo",2.4,10.75,1.1000000000000001,8.6,2,10.9,30.25,-40.200000000000003]
[19]
[null,15,16,"Ville Peltonen","HTV",1.7,9.9,2,10.6,1,9,29.5,-40.950000000000003]
[20]
[null,16,29,"Petteri Nokelainen","KTV",2.6,11.15,1,9.9,21.05,-49.4]
[21]
[null,17,21,"Teemu Eronen","HTV",1.8,9.8000000000000007,2,11,20.8,-49.65]
[22]
[null,18,27,"Juha Lind","STV",2.2000000000000002,10.15,1,9,19.149999999999999,-51.3]
[23]
[null,19,41,"Antti Pihlström","Jyvo",1.8,5,14,14,-56.45]
[24]
[null,20,40,"Sami Lepistö","KTV",2.6,1,11,11,-59.45]
[25]
[null,21,36,"Marko Tuulola","KTV",2.9,2,11,11,-59.45]
[26]
[null,22,58,"Nico Manelius","KTV",2.2999999999999998,2,11,11,-59.45]
[27]
[null,23,50,"Tommi Kivistö","KTV",2.1,2,11,11,-59.45]
[28]
[null,24,28,"Jani Rita","HYV",2.2000000000000002,10.5,10.5,-59.95]
[29]
[null,25,25,"Jukka Hentunen","HTV",1.7,9.9499999999999993,9.9499999999999993,-60.5]
[30]
[null,26,35,"Mika Järvinen","KTV",2.6,1,9.9,9.9,-60.55]
[31]
[null,27,44,"Sami Vatanen","Jyvo",1.6,0,-70.45]
[32]
[null,28,47,"Janne Lahti","Jyvo",2,0,-70.45]
[33]
[null,29,49,"Tuomas Pihlman","Jokerit",2.2000000000000002,0,-70.45]
[34]
[null,30,64,"Mikael Granlund","HIFK",2.6,0,-70.45]
[35]
[null,"palauta loppu"]
[10]
[null,"Tuloksen näyttöaika lajittelun jälkeen","tuloksennayttoaikalajittelunjalkeen",0,"sek",4,238,24,"#04EE18","#04EE18"]
[35]
[null,"palauta loppu"]
[35]
[null,"palauta loppu"]
[1]
[null,8,"Teemu Selänne","HTV",3,12]
[2]
[null,"Permanto"]
[3]
[null,0,"Nr","Nimi","Seura","D","väh","E","Yhteensä"]
[4]
[null,1,10,"Toni Rajala",3,0,9,12]
[5]
[null,2,8,"Teemu Selänne",3,0,9,12]
[6]
[null,3,11,"Saku Koivu",4,1,9,12]
[7]
[null,4,22,"Ville Leino",2.2000000000000002,0.4,8.75,10.55]
[8]
[null,5,1,"Kari Lehtonen"]
[9]
[null,6,12,"Jani Tuppurainen"]
[10]
[null,7,2,"Sami Salo"]
[11]
[null,8,15,"Juha-Pekka Hytönen"]
[13]
[null,2,"Sami Salo","STV",6,15.75]
[14]
[null,"Hevonen"]
[15]
[null,0,"Nr","Nimi","Seura","D","väh","E","Yhteensä"]
[16]
[null,1,2,"Sami Salo",6,0,9.75,15.75]
[17]
[null,2,22,"Ville Leino",2,0,9,11]
[18]
[null,3,10,"Toni Rajala",1,0,9,10]
[19]
[null,4,1,"Kari Lehtonen",1,0,9,10,"tie"]
[20]
[null,5,12,"Jani Tuppurainen"]
[21]
[null,6,11,"Saku Koivu"]
[22]
[null,7,8,"Teemu Selänne"]
[23]
[null,8,15,"Juha-Pekka Hytönen"]
[35]
[null,"palauta loppu"]
[34]
[null,6056]
["Alueen nimet"]
["Lempinimi:","Ohje"]
[null,null,"×"]
[null,null,"×"]
[null,null,"×"]
[null,null,"×"]
[null,null,"×"]
[null,null,"×"]
[null,null,"×"]
[null,null,"×"]
[null,null,"×"]
[null,null,"×"]
[null,null,"×"]
[null,null,"×"]
[null,null,"×"]
[null,null,"×"]
[null,null,"×"]
[null,null,"×"]
[null,null,"×"]
[null,null,"×"]
[null,null,"×"]
[null,null,"×"]

{"sheet":"Tulostus","index":17,"n_rows":36,"n_cols":17,"rows_kept":36,"cut":false,"hidden":false,"merged":[[2,0,2,2],[0,3,0,7]]}
[null,null,null,"Suomen                            mestaruuskilpailut            Jyväskylä 16.4.2011"]
[]
["Miesten 6-ottelu",null,null,null,"Permanto",{"$f":"Permanto!$M$1","v":""},"Hevonen",{"$f":"Hevonen!$M$1","v":""},"Renkaat",{"$f":"Renkaat!$M$1","v":""},"Hyppy",{"$f":"Hyppy!$M$1","v":""},"Nojapuut",{"$f":"Nojapuut!$M$1","v":""},"Rekki",{"$f":"Rekki!$M$1","v":""}]
[0,"Nr","Nimi","Seura","D","yht","D","yht","D","yht","D","yht","D","yht","D","yht","Yhteensä"]
[1,102,{"$f":"VLOOKUP($B5,nimilista,2,FALSE)","v":"Heikki Niva"},{"$f":"VLOOKUP($B5,nimilista,5,FALSE)","v":"Espoon Telinetaiturit"},{"$f":"VLOOKUP($B5,permanto,5,FALSE)","v":0},{"$f":"VLOOKUP($B5,permanto,12,FALSE)","v":0},{"$f":"VLOOKUP($B5,hevonen,5,FALSE)","v":0},{"$f":"VLOOKUP($B5,hevonen,12,FALSE)","v":0},{"$f":"VLOOKUP($B5,renkaat,5,FALSE)","v":0},{"$f":"VLOOKUP($B5,renkaat,12,FALSE)","v":0},{"$f":"VLOOKUP($B5,hyppy,5,FALSE)","v":0},{"$f":"VLOOKUP($B5,hyppy,12,FALSE)","v":0},{"$f":"VLOOKUP($B5,nojapuut,5,FALSE)","v":0},{"$f":"VLOOKUP($B5,nojapuut,12,FALSE)","v":0},{"$f":"VLOOKUP($B5,rekki,5,FALSE)","v":0},{"$f":"VLOOKUP($B5,rekki,12,FALSE)","v":0},{"$f":"F5+H5+J5+L5+N5+P5","v":0}]
[2,103,"Ilkka Kuusela","Espoon Telinetaiturit",0,0,0,0,0,0,0,0,0,0,0,0,0]
[3,104,"Milo Siivonen","Espoon Telinetaiturit",0,0,0,0,0,0,0,0,0,0,0,0,0]
[4,105,"Oskar Kirmes","Espoon Telinetaiturit",0,0,0,0,0,0,0,0,0,0,0,0,0]
[5,106,"Henrik Petterson","Helsingfors Gymnastikklubb",0,0,0,0,0,0,0,0,0,0,0,0,0]
[6,107,"Artturi Lobski","Jyväskylän Voimistelijat",0,0,0,0,0,0,0,0,0,0,0,0,0]
[7,108,"Heikki Saarenketo","Jyväskylän Voimistelijat",0,0,0,0,0,0,0,0,0,0,0,0,0]
[8,109,"Janne Haapajoki","Jyväskylän Voimistelijat",0,0,0,0,0,0,0,0,0,0,0,0,0]
[9,110,"Jarkko Harju","Jyväskylän Voimistelijat",0,0,0,0,0,0,0,0,0,0,0,0,0]
[10,111,"Leevi Aihos","Jyväskylän Voimistelijat",0,0,0,0,0,0,0,0,0,0,0,0,0]
[11,112,"Pavel Titov","Jyväskylän Voimistelijat",0,0,0,0,0,0,0,0,0,0,0,0,0]
[12,113,"Sakari Vekki","Jyväskylän Voimistelijat",0,0,0,0,0,0,0,0,0,0,0,0,0]
[13,114,"Jimi Päivänen","Kotkan Telinevoimistelijat",0,0,0,0,0,0,0,0,0,0,0,0,0]
[14,115,"Markku Leinonen","Kotkan Telinevoimistelijat",0,0,0,0,0,0,0,0,0,0,0,0,0]
[15,116,"Arttu Kesti","Oulun Pyrintö",0,0,0,0,0,0,0,0,0,0,0,0,0]
[16,117,"Konsta Huuki","Oulun Pyrintö",0,0,0,0,0,0,0,0,0,0,0,0,0]
[17,118,"Kim Junna","Taipumattomat",0,0,0,0,0,0,0,0,0,0,0,0,0]
[18,119,"Mikael Miettinen","Tampereen Sisu",0,0,0,0,0,0,0,0,0,0,0,0,0]
[19,120,"Ville Hynninen","Tampereen Sisu",0,0,0,0,0,0,0,0,0,0,0,0,0]
[20,121,"Aaron Hotanen","Turun Pyrkivä",0,0,0,0,0,0,0,0,0,0,0,0,0]
[21,122,"Oz Ekholm","Turun Pyrkivä",0,0,0,0,0,0,0,0,0,0,0,0,0]
[22,123,"Samuel Oporta","Turun Pyrkivä",0,0,0,0,0,0,0,0,0,0,0,0,0]
[23,124,"Juho Kanerva","Turun Urheiluliitto",0,0,0,0,0,0,0,0,0,0,0,0,0]
[24,125,"Olli Kanerva","Turun Urheiluliitto",0,0,0,0,0,0,0,0,0,0,0,0,0]
[25,126,"Sami Aalto","Turun Urheiluliitto",0,0,0,0,0,0,0,0,0,0,0,0,0]
[26,127,"Aaro Lamberg","Voimisteluseura Helsinki",0,0,0,0,0,0,0,0,0,0,0,0,0]
[27,128,"Jouko Koskinen","Voimisteluseura Helsinki",0,0,0,0,0,0,0,0,0,0,0,0,0]
[28,129,"Kasper Holopainen","Voimisteluseura Helsinki",0,0,0,0,0,0,0,0,0,0,0,0,0]
[29,130,"Petrus Laulumaa","Voimisteluseura Helsinki",0,0,0,0,0,0,0,0,0,0,0,0,0]
[30,131,"Timo Niemelä","Voimisteluseura Helsinki",0,0,0,0,0,0,0,0,0,0,0,0,0]
[31,132,"Tomi Tuuha","Voimisteluseura Helsinki",0,0,0,0,0,0,0,0,0,0,0,0,0]
[32,133,"Jarkko Pekkanen","Voimisteluseura Keski-Uusimaa",0,0,0,0,0,0,0,0,0,0,0,0,0]

{"sheet":"Nimilista","index":18,"n_rows":36,"n_cols":8,"rows_kept":36,"cut":false,"hidden":false,"merged":[]}
["Nimilista"]
[]
[]
["Nro","Nimi","Seura","Lyhenne","Tulosseura","Nayttoseura","Lyhennetty nimi","Näyttönimi"]
[102,"Heikki Niva","Espoon Telinetaiturit","EsTT","Espoon Telinetaiturit","EsTT","H.Niva","H.Niva"]
[103,"Ilkka Kuusela","Espoon Telinetaiturit","EsTT","Espoon Telinetaiturit","EsTT","I.Kuusela","I.Kuusela"]
[104,"Milo Siivonen","Espoon Telinetaiturit","EsTT","Espoon Telinetaiturit","EsTT","M.Siivonen","M.Siivonen"]
[105,"Oskar Kirmes","Espoon Telinetaiturit","EsTT","Espoon Telinetaiturit","EsTT","O.Kirmes","O.Kirmes"]
[106,"Henrik Petterson","Helsingfors Gymnastikklubb","HGK","Helsingfors Gymnastikklubb","HGK","H.Petterson","H.Petterson"]
[107,"Artturi Lobski","Jyväskylän Voimistelijat","JyVo","Jyväskylän Voimistelijat","JyVo","A.Lobski","A.Lobski"]
[108,"Heikki Saarenketo","Jyväskylän Voimistelijat","JyVo","Jyväskylän Voimistelijat","JyVo","H.Saarenketo","H.Saarenketo"]
[109,"Janne Haapajoki","Jyväskylän Voimistelijat","JyVo","Jyväskylän Voimistelijat","JyVo","J.Haapajoki","J.Haapajoki"]
[110,"Jarkko Harju","Jyväskylän Voimistelijat","JyVo","Jyväskylän Voimistelijat","JyVo","J.Harju","J.Harju"]
[111,"Leevi Aihos","Jyväskylän Voimistelijat","JyVo","Jyväskylän Voimistelijat","JyVo","L.Aihos","L.Aihos"]
[112,"Pavel Titov","Jyväskylän Voimistelijat","JyVo","Jyväskylän Voimistelijat","JyVo","P.Titov","P.Titov"]
[113,"Sakari Vekki","Jyväskylän Voimistelijat","JyVo","Jyväskylän Voimistelijat","JyVo","S.Vekki","S.Vekki"]
[114,"Jimi Päivänen","Kotkan Telinevoimistelijat","KOTEVO","Kotkan Telinevoimistelijat","KOTEVO","J.Päivänen","J.Päivänen"]
[115,"Markku Leinonen","Kotkan Telinevoimistelijat","KOTEVO","Kotkan Telinevoimistelijat","KOTEVO","M.Leinonen","M.Leinonen"]
[116,"Arttu Kesti","Oulun Pyrintö","OP","Oulun Pyrintö","OP","A.Kesti","A.Kesti"]
[117,"Konsta Huuki","Oulun Pyrintö","OP","Oulun Pyrintö","OP","K.Huuki","K.Huuki"]
[118,"Kim Junna","Taipumattomat","Taip","Taipumattomat","Taip","K.Junna","K.Junna"]
[119,"Mikael Miettinen","Tampereen Sisu","TaSi","Tampereen Sisu","TaSi","M.Miettinen","M.Miettinen"]
[120,"Ville Hynninen","Tampereen Sisu","TaSi","Tampereen Sisu","TaSi","V.Hynninen","V.Hynninen"]
[121,"Aaron Hotanen","Turun Pyrkivä","TuPy","Turun Pyrkivä","TuPy","A.Hotanen","A.Hotanen"]
[122,"Oz Ekholm","Turun Pyrkivä","TuPy","Turun Pyrkivä","TuPy","Oz Ekholm","Oz Ekholm"]
[123,"Samuel Oporta","Turun Pyrkivä","TuPy","Turun Pyrkivä","TuPy","S.Oporta","S.Oporta"]
[124,"Juho Kanerva","Turun Urheiluliitto","TuUL","Turun Urheiluliitto","TuUL","J.Kanerva","J.Kanerva"]
[125,"Olli Kanerva","Turun Urheiluliitto","TuUL","Turun Urheiluliitto","TuUL","O.Kanerva","O.Kanerva"]
[126,"Sami Aalto","Turun Urheiluliitto","TuUL","Turun Urheiluliitto","TuUL","S.Aalto","S.Aalto"]
[127,"Aaro Lamberg","Voimisteluseura Helsinki","VSH","Voimisteluseura Helsinki","VSH","A.Lamberg","A.Lamberg"]
[128,"Jouko Koskinen","Voimisteluseura Helsinki","VSH","Voimisteluseura Helsinki","VSH","J.Koskinen","J.Koskinen"]
[129,"Kasper Holopainen","Voimisteluseura Helsinki","VSH","Voimisteluseura Helsinki","VSH","K.Holopainen","K.Holopainen"]
[130,"Petrus Laulumaa","Voimisteluseura Helsinki","VSH","Voimisteluseura Helsinki","VSH","P.Laulumaa","P.Laulumaa"]
[131,"Timo Niemelä","Voimisteluseura Helsinki","VSH","Voimisteluseura Helsinki","VSH","T.Niemelä","T.Niemelä"]
[132,"Tomi Tuuha","Voimisteluseura Helsinki","VSH","Voimisteluseura Helsinki","VSH","T.Tuuha","T.Tuuha"]
[133,"Jarkko Pekkanen","Voimisteluseura Keski-Uusimaa","VSK-U","Voimisteluseura Keski-Uusimaa","VSK-U","J.Pekkanen","J.Pekkanen"]